{"text_format":"1","workbook":"xlsx","n_sheets":8,"sheets":["Instructions","Section 1","Section 2","Summary","Reference List","Checks","Lists","OutputForCSV"],"not_rendered":{"charts":0,"images":0,"macros":1,"external_links":0,"defined_names":38,"comments":5,"pivot_tables":0},"unopened":[],"bounds":{"document_bytes":16777216,"sheet_cells":100000,"rows_first":2000,"rows_last":500,"rows_between":2000,"halvings":0,"cell_chars":16384,"cell_head_chars":4096},"cells_cut":0,"cells_raw":0,"read":"whole","date_system":"1900"}

{"sheet":"Instructions","index":0,"n_rows":21,"n_cols":3,"rows_kept":21,"cut":false,"hidden":false,"merged":[]}
[]
[null,null,"OMB Control Number: 2060-0170"]
[null,null,"Expiration Date: 4/30/2023"]
[null,null,"U.S. Environmental Protection Agency "]
[null,null,"Stratospheric Ozone Protection Program"]
[]
[null,null,"Class II Trades Report (Sec 82.23)"]
[null,null,"Version 4.1"]
[null,null,"Last Updated: July 2020"]
[]
[null,null,"Instructions"]
[null,null,"Complete this form by filling in the data fields that are highlighted in blue.  Guidance on how to complete individual data fields are provided in comment bubbles. Use the arrows to navigate between the tabs. Once completed, use the 'prepare submission' button on the Summary tab to generate your CSV file.  "]
[null,null,"Copying and Pasting Data: If data are pasted into this reporting form from another spreadsheet, the formatting of specific cells must be consistent with the requirements of the form in order to be "]
[null,null,"accepted into EPA’s ODS Tracking System. Refer to the Reference List to identify the valid naming scheme for specific data fields. Additionally, select \"Paste As Values\" when pasting data into the form."]
[null,null,"Report Submission: This Excel file, the generated CSV file, and all supporting attachments should be submitted to EPA through the Central Data Exchange (CDX). Refer to EPA's website for additional information on form submission:"]
[null,null,"https://www.epa.gov/ods-phaseout/ods-recordkeeping-and-reporting "]
[]
[null,null,"All information submitted to EPA will be treated as confidential in accordance with 40 CFR Part 2, Subpart B, and will only be disclosed by the means set forth in the subpart. "]
[null,null,"This collection of information is approved by OMB under the Paperwork Reduction Act, 44 U.S.C. 3501 et seq. (OMB Control No. 2060-0170). Responses to this collection of information are mandatory (40 CFR 82.23). An agency may not conduct or sponsor, and a person is not required to respond to, a collection of information unless it displays a currently valid OMB control number. The number and expiration date are displayed in the upper right corner of the form. The public reporting and recordkeeping burden for this collection of information is estimated to be 4 hours per response. Send comments on the Agency’s need this formation, the accuracy of the provided burden estimates and any suggested methods for minimizing respondent burden including through the use of automated collection techniques to the Director, Regulatory Support Division, U.S. Environmental Protection Agency (2821T), 1200 Pennsylvania Ave., NW, Washington, D.C. 20460.  Include the OMB control number in any correspondence.  Do not send the completed form to this address."]
[]
[null,null,"EPA Form #5900-205"]

{"sheet":"Section 1","index":1,"n_rows":14,"n_cols":9,"rows_kept":14,"cut":false,"hidden":false,"merged":[[7,2,7,3],[2,2,2,3]]}
[]
[null,null,"U.S. Environmental Protection Agency"]
[null,null,"Class II Trades Report "]
[]
[null,null,"   Date Prepared:",{"$f":"TODAY()","v":"2020-07-15"}]
[]
[null,null,"Section 1: Transferor Identification Information "]
[null,null,"Complete all fields below.  No fields may be left blank."]
[null,null,"Company Name: ",null,null,{"$f":"IF(D9=0,1,0)","v":1}]
[null,null,"Submission Type:",null,null,{"$f":"IF(D10=0,1,0)","v":1}]
[null,null,"Reporting Year:",null,null,{"$f":"IF(OR($D$11=0,$D$11>YEAR(TODAY())),1,0)","v":1},null,null,{"$f":"IF(D11>YEAR(TODAY()),\"PLEASE CHOOSE A CURRENT OR PAST YEAR\",\"\")","v":""}]
[null,null,null,""]
[null,null,null,{"$f":"Lists!D3","v":"Original Submission"}]
[null,null,null,{"$f":"Lists!D4","v":"Re-Submittal"}]

{"sheet":"Section 2","index":2,"n_rows":234,"n_cols":25,"rows_kept":234,"cut":false,"hidden":false,"merged":[[17,12,17,14],[9,3,10,3],[9,4,10,4],[9,5,10,5],[9,6,10,6],[9,7,10,7],[9,8,10,8],[9,9,10,9],[9,10,10,10],[16,3,16,14],[17,3,18,3],[17,4,17,6],[17,10,17,11],[17,7,17,9]]}
[]
[null,null,null,"U.S. Environmental Protection Agency"]
[null,null,{"$f":"IFERROR(VLOOKUP($A3,'Section 2'!E$22:$O$31,COLUMNS('Section 2'!$D$18:D$19),0),\"\")","v":""},"Class II Trades Report "]
[]
[null,null,null,"Company Name:",{"$f":"IF('Section 1'!D9=0,\"\",'Section 1'!D9)","v":""}]
[null,null,null,"Reporting Period:",{"$f":"IF('Section 1'!D11=0,\"\",'Section 1'!D11)","v":""}]
[]
[null,null,null,"Section 2: Transaction Data"]
[null,null,null,"In the table below, enter the contact information for the recipient of the trade.  If reporting on an inter-pollutant, intra-company trade, enter your company's name as the transferee company; the other fields may be left blank. "]
[null,null,null,"Transferee Company Name","Transferee Contact Name","Transferee Contact Phone Number","Transferee Street Address","Transferee City","Transferee State/Province","Transferee Country","Transferee Postal Code"]
[]
[null,null,null,"Text","Text","Text","Text","Text","Selection/Text","Selection","Text",null,null,null,null,null,null,null,null,"Checks"]
[null,null,null,"Company A","John Smith","202 555 5555","1 Main Street","Los Angeles","California","United States of America","90001",null,null,null,null,null,null,null,null,"Row Completed","Valid State/Province","Valid Country"]
[{"$f":"IF($D$14=\"\",\"\",1)","v":""},null,null,null,null,null,null,null,null,null,null,null,null,null,null,null,null,{"$f":"IF($T$14>0,\"ROW INCOMPLETE OR INVALID DATA ENTERED; ENTER/EDIT DATA IN REQUIRED FIELDS\",\"\")","v":""},null,{"$f":"IF(AND($D$14<>'Section 1'!$D$9,$A$14=1),IF(OR($D$14=0,$E$14=0,$F$14=0,$G$14=0,$H$14=0,AND($J$14=\"United States of America\",$I$14=0),$J$14=0,$K$14=0),1,0),0)","v":0},{"$f":"IF($J$14=Lists!$B$196,IF(COUNTIF(States,'Section 2'!$I$14)>0,0,1),0)","v":0},{"$f":"IF($J$14=0,0,IF(COUNTIF(Countries,$J$14)>0,0,1))","v":0}]
[]
[null,null,null,"In the table below, enter data for each trade request.  For all controlled substances that are transferred, all fields are required unless otherwise indicated.  Note that inter-pollutant trades of baseline year allowances will not be approved."]
[null,null,null,"If copying and pasting data into the table, please refer to the Reference List and the accompanying instructions.\n"]
[null,null,null,"Transaction Number","Allowance Type",null,null,"Allowances Being Transferred",null,null,"Allowances Being Received",null,"Conversion Calculation"]
[null,null,null,null,"Production or Consumption","Current or Baseline","Domestic or International","Class II Chemical Name","ODP of Class II Chemical Being Transferred","Quantity of Class II Allowances","Class II Chemical Name","ODP of Class II Chemical Being Received","Amount of Offset","Number of Allowances Subtracted from Transferor's Class II Allowance Balance","Number of Class II Allowances Being Received"]
[null,null,null,"Autopopulated","Selection","Selection","Selection","Selection","Autopopulated","kg","Selection","Autopopulated","Autopopulated","Autopopulated","Autopopulated",null,null,null,null,"Checks"]
[null,null,null,1,"Production","Current","Domestic","HCFC-124",{"$f":"IF(H21=\"\",\"\",VLOOKUP(H21,Lists!$K$2:$L$9,2,FALSE))","v":2.1999999999999999E-2},1000,"HCFC-123",{"$f":"IF(K21=\"\",\"\",VLOOKUP(K21,Lists!$K$2:$L$9,2,FALSE))","v":0.02},{"$f":"IF(J21=\"\",\"\",0.001*J21)","v":1},{"$f":"IFERROR(ROUND(M21+J21,0), \"\")","v":1001},{"$f":"IF(M21=\"\",\"\",ROUND(J21*I21/L21,0))","v":1100},null,null,null,null,"ActiveRow?","Row Completed?","Valid Chemical","Valid Chem To","Inter-pollutant check","NegNumber?"]
[{"$f":"IF(H22=0, \"\", 1)","v":""},null,null,{"$f":"IF(H22=\"\",\"\",1)","v":""},null,null,null,null,{"$f":"IF(H22=\"\",\"\",VLOOKUP(H22,Lists!$K$2:$L$9,2,FALSE))","v":""},null,null,{"$f":"IF(K22=\"\",\"\",VLOOKUP(K22,Lists!$K$2:$L$9,2,FALSE))","v":""},"",{"$f":"IFERROR(ROUND(M22+J22,0), \"\")","v":""},{"$f":"IF(M22=\"\",\"\",ROUND(J22*I22/L22,0))","v":""},null,null,{"$f":"IF(SUM(U22:X22)>0,\"ROW INCOMPLETE OR INVALID DATA ENTERED; ENTER/EDIT DATA IN REQUIRED FIELDS\",\"\")","v":""},null,{"$f":"IF(D22=\"\",\"N\",\"Y\")","v":"N"},{"$f":"IF(D22=\"\",0,IF(OR(E22=0, F22=0, G22=0, H22=0, J22=0, K22=0),1,0))","v":0},{"$f":"IF(H22=0,0,IF(COUNTIF(ClassIIChemAllowance,H22)>0,0,1))","v":0},{"$f":"IF(K22=0,0,IF(COUNTIF(ClassIIChemAllowance,K22)>0,0,1))","v":0},{"$f":"IF(F22=Lists!$H$4,IF('Section 2'!H22='Section 2'!K22,0,1),0)","v":0},{"$f":"IF(J22<0,1,0)","v":0}]
[{"$f":"IF(H23=0, \"\", IF(COUNTIF($H$22:H22, H23)>0, \"\", MAX($A$22:A22)+1))","v":""},null,null,{"$f":"IF(H23=\"\",\"\",MAX($D$22:D22)+1)","v":""},null,null,null,null,{"$f":"IF(H23=\"\",\"\",VLOOKUP(H23,Lists!$K$2:$L$9,2,FALSE))","v":""},null,null,{"$f":"IF(K23=\"\",\"\",VLOOKUP(K23,Lists!$K$2:$L$9,2,FALSE))","v":""},"","",{"$f":"IF(M23=\"\",\"\",ROUND(J23*I23/L23,0))","v":""},null,null,{"$f":"IF(SUM(U23:X23)>0,\"ROW INCOMPLETE OR INVALID DATA ENTERED; ENTER/EDIT DATA IN REQUIRED FIELDS\",\"\")","v":""},null,"N",{"$f":"IF(D23=\"\",0,IF(OR(E23=0, F23=0, G23=0, H23=0, J23=0, K23=0),1,0))","v":0},0,0,{"$f":"IF(F23=Lists!$H$4,IF('Section 2'!H23='Section 2'!K23,0,1),0)","v":0},{"$f":"IF(J23<0,1,0)","v":0}]
[{"$f":"IF(H24=0, \"\", IF(COUNTIF($H$22:H23, H24)>0, \"\", MAX($A$22:A23)+1))","v":""},null,null,{"$f":"IF(H24=\"\",\"\",MAX($D$22:D23)+1)","v":""},null,null,null,null,{"$f":"IF(H24=\"\",\"\",VLOOKUP(H24,Lists!$K$2:$L$9,2,FALSE))","v":""},null,null,{"$f":"IF(K24=\"\",\"\",VLOOKUP(K24,Lists!$K$2:$L$9,2,FALSE))","v":""},"","","",null,null,"",null,"N",0,0,0,{"$f":"IF(F24=Lists!$H$4,IF('Section 2'!H24='Section 2'!K24,0,1),0)","v":0},0]
[{"$f":"IF(H25=0, \"\", IF(COUNTIF($H$22:H24, H25)>0, \"\", MAX($A$22:A24)+1))","v":""},null,null,{"$f":"IF(H25=\"\",\"\",MAX($D$22:D24)+1)","v":""},null,null,null,null,{"$f":"IF(H25=\"\",\"\",VLOOKUP(H25,Lists!$K$2:$L$9,2,FALSE))","v":""},null,null,{"$f":"IF(K25=\"\",\"\",VLOOKUP(K25,Lists!$K$2:$L$9,2,FALSE))","v":""},"","","",null,null,"",null,"N",0,0,0,{"$f":"IF(F25=Lists!$H$4,IF('Section 2'!H25='Section 2'!K25,0,1),0)","v":0},0]
[{"$f":"IF(H26=0, \"\", IF(COUNTIF($H$22:H25, H26)>0, \"\", MAX($A$22:A25)+1))","v":""},null,null,{"$f":"IF(H26=\"\",\"\",MAX($D$22:D25)+1)","v":""},null,null,null,null,{"$f":"IF(H26=\"\",\"\",VLOOKUP(H26,Lists!$K$2:$L$9,2,FALSE))","v":""},null,null,{"$f":"IF(K26=\"\",\"\",VLOOKUP(K26,Lists!$K$2:$L$9,2,FALSE))","v":""},"","","",null,null,"",null,"N",0,0,0,{"$f":"IF(F26=Lists!$H$4,IF('Section 2'!H26='Section 2'!K26,0,1),0)","v":0},0]
[{"$f":"IF(H27=0, \"\", IF(COUNTIF($H$22:H26, H27)>0, \"\", MAX($A$22:A26)+1))","v":""},null,null,{"$f":"IF(H27=\"\",\"\",MAX($D$22:D26)+1)","v":""},null,null,null,null,{"$f":"IF(H27=\"\",\"\",VLOOKUP(H27,Lists!$K$2:$L$9,2,FALSE))","v":""},null,null,{"$f":"IF(K27=\"\",\"\",VLOOKUP(K27,Lists!$K$2:$L$9,2,FALSE))","v":""},"","",{"$f":"IF(M27=\"\",\"\",ROUND(J27*I27/L27,0))","v":""},null,null,"",null,"N",0,0,0,{"$f":"IF(F27=Lists!$H$4,IF('Section 2'!H27='Section 2'!K27,0,1),0)","v":0},0]
[{"$f":"IF(H28=0, \"\", IF(COUNTIF($H$22:H27, H28)>0, \"\", MAX($A$22:A27)+1))","v":""},null,null,{"$f":"IF(H28=\"\",\"\",MAX($D$22:D27)+1)","v":""},null,null,null,null,{"$f":"IF(H28=\"\",\"\",VLOOKUP(H28,Lists!$K$2:$L$9,2,FALSE))","v":""},null,null,{"$f":"IF(K28=\"\",\"\",VLOOKUP(K28,Lists!$K$2:$L$9,2,FALSE))","v":""},"","","",null,null,{"$f":"IF(SUM(U28:X28)>0,\"ROW INCOMPLETE OR INVALID DATA ENTERED; ENTER/EDIT DATA IN REQUIRED FIELDS\",\"\")","v":""},null,"N",0,0,0,{"$f":"IF(F28=Lists!$H$4,IF('Section 2'!H28='Section 2'!K28,0,1),0)","v":0},0]
[{"$f":"IF(H29=0, \"\", IF(COUNTIF($H$22:H28, H29)>0, \"\", MAX($A$22:A28)+1))","v":""},null,null,{"$f":"IF(H29=\"\",\"\",MAX($D$22:D28)+1)","v":""},null,null,null,null,{"$f":"IF(H29=\"\",\"\",VLOOKUP(H29,Lists!$K$2:$L$9,2,FALSE))","v":""},null,null,{"$f":"IF(K29=\"\",\"\",VLOOKUP(K29,Lists!$K$2:$L$9,2,FALSE))","v":""},"","","",null,null,"",null,"N",0,0,0,{"$f":"IF(F29=Lists!$H$4,IF('Section 2'!H29='Section 2'!K29,0,1),0)","v":0},0]
[{"$f":"IF(H30=0, \"\", IF(COUNTIF($H$22:H29, H30)>0, \"\", MAX($A$22:A29)+1))","v":""},null,null,{"$f":"IF(H30=\"\",\"\",MAX($D$22:D29)+1)","v":""},null,null,null,null,{"$f":"IF(H30=\"\",\"\",VLOOKUP(H30,Lists!$K$2:$L$9,2,FALSE))","v":""},null,null,{"$f":"IF(K30=\"\",\"\",VLOOKUP(K30,Lists!$K$2:$L$9,2,FALSE))","v":""},"","","",null,null,"",null,"N",0,0,0,{"$f":"IF(F30=Lists!$H$4,IF('Section 2'!H30='Section 2'!K30,0,1),0)","v":0},0]
[{"$f":"IF(H31=0, \"\", IF(COUNTIF($H$22:H30, H31)>0, \"\", MAX($A$22:A30)+1))","v":""},{"$f":"IF(COUNTA(N31:N31)>0,0,1)","v":0},null,{"$f":"IF(H31=\"\",\"\",MAX($D$22:D30)+1)","v":""},null,null,null,null,{"$f":"IF(H31=\"\",\"\",VLOOKUP(H31,Lists!$K$2:$L$9,2,FALSE))","v":""},null,null,{"$f":"IF(K31=\"\",\"\",VLOOKUP(K31,Lists!$K$2:$L$9,2,FALSE))","v":""},"","","",null,null,"",null,"N",0,0,0,{"$f":"IF(F31=Lists!$H$4,IF('Section 2'!H31='Section 2'!K31,0,1),0)","v":0},0]
[null,null,null,null,"x","x","x","x",null,null,"x"]
[null,null,null,null,null,null,null,null,null,{"$f":"Lists!C3","v":"Alaska"},{"$f":"Lists!B3","v":"Afghanistan"},null,{"$f":"Lists!G3","v":"Production"},{"$f":"Lists!H3","v":"Current"},{"$f":"Lists!I3","v":"Domestic"},null,null,{"$f":"Lists!#REF!","v":{"$error":"#REF!"}}]
[null,null,null,null,null,null,null,null,null,{"$f":"Lists!C4","v":"Alabama"},{"$f":"Lists!B4","v":"Albania"},null,{"$f":"Lists!G4","v":"Consumption"},{"$f":"Lists!H4","v":"Baseline"},{"$f":"Lists!#REF!","v":{"$error":"#REF!"}},null,null,{"$f":"Lists!J3","v":"HCFC-123"}]
[null,null,null,null,null,null,null,null,null,{"$f":"Lists!C5","v":"Arkansas"},{"$f":"Lists!B5","v":"Algeria"},null,{"$f":"Lists!#REF!","v":{"$error":"#REF!"}},null,null,null,null,{"$f":"Lists!J4","v":"HCFC-124"}]
[null,null,null,null,null,null,null,null,null,{"$f":"Lists!C6","v":"Arizona"},{"$f":"Lists!B6","v":"Andorra"},null,null,null,null,null,null,{"$f":"Lists!#REF!","v":{"$error":"#REF!"}}]
[null,null,null,null,null,null,null,null,null,{"$f":"Lists!C7","v":"California"},{"$f":"Lists!B7","v":"Angola"},null,null,null,null,null,null,{"$f":"Lists!#REF!","v":{"$error":"#REF!"}}]
[null,null,null,null,null,null,null,null,null,{"$f":"Lists!C8","v":"Colorado"},{"$f":"Lists!B8","v":"Antigua and Barbuda"},null,null,null,null,null,null,{"$f":"Lists!#REF!","v":{"$error":"#REF!"}}]
[null,null,null,null,null,null,null,null,null,{"$f":"Lists!C9","v":"Connecticut"},{"$f":"Lists!B9","v":"Argentina"},null,null,null,null,null,null,{"$f":"Lists!#REF!","v":{"$error":"#REF!"}}]
[null,null,null,null,null,null,null,null,null,{"$f":"Lists!C10","v":"District of Columbia"},{"$f":"Lists!B10","v":"Armenia"}]
[null,null,null,null,null,null,null,null,null,{"$f":"Lists!C11","v":"Delaware"},{"$f":"Lists!B11","v":"Australia"}]
[null,null,null,null,null,null,null,null,null,{"$f":"Lists!C12","v":"Florida"},{"$f":"Lists!B12","v":"Austria"}]
[null,null,null,null,null,null,null,null,null,{"$f":"Lists!C13","v":"Georgia"},{"$f":"Lists!B13","v":"Azerbaijan"}]
[null,null,null,null,null,null,null,null,null,{"$f":"Lists!C14","v":"Hawaii"},{"$f":"Lists!B14","v":"Bahamas"}]
[null,null,null,null,null,null,null,null,null,{"$f":"Lists!C15","v":"Iowa"},{"$f":"Lists!B15","v":"Bahrain"}]
[null,null,null,null,null,null,null,null,null,{"$f":"Lists!C16","v":"Idaho"},{"$f":"Lists!B16","v":"Bangladesh"}]
[null,null,null,null,null,null,null,null,null,{"$f":"Lists!C17","v":"Illinois"},{"$f":"Lists!B17","v":"Barbados"}]
[null,null,null,null,null,null,null,null,null,{"$f":"Lists!C18","v":"Indiana"},{"$f":"Lists!B18","v":"Belarus"}]
[null,null,null,null,null,null,null,null,null,{"$f":"Lists!C19","v":"Kansas"},{"$f":"Lists!B19","v":"Belgium"}]
[null,null,null,null,null,null,null,null,null,{"$f":"Lists!C20","v":"Kentucky"},{"$f":"Lists!B20","v":"Belize"}]
[null,null,null,null,null,null,null,null,null,{"$f":"Lists!C21","v":"Louisiana"},{"$f":"Lists!B21","v":"Benin"}]
[null,null,null,null,null,null,null,null,null,{"$f":"Lists!C22","v":"Massachusetts"},{"$f":"Lists!B22","v":"Bermuda"}]
[null,null,null,null,null,null,null,null,null,{"$f":"Lists!C23","v":"Maryland"},{"$f":"Lists!B23","v":"Bhutan"}]
[null,null,null,null,null,null,null,null,null,{"$f":"Lists!C24","v":"Maine"},{"$f":"Lists!B24","v":"Bolivia (Plurinational State of)"}]
[null,null,null,null,null,null,null,null,null,{"$f":"Lists!C25","v":"Michigan"},{"$f":"Lists!B25","v":"Bosnia and Herzegovina"}]
[null,null,null,null,null,null,null,null,null,{"$f":"Lists!C26","v":"Minnesota"},{"$f":"Lists!B26","v":"Botswana"}]
[null,null,null,null,null,null,null,null,null,{"$f":"Lists!C27","v":"Missouri"},{"$f":"Lists!B27","v":"Brazil"}]
[null,null,null,null,null,null,null,null,null,{"$f":"Lists!C28","v":"Mississippi"},{"$f":"Lists!B28","v":"Brunei Darussalam"}]
[null,null,null,null,null,null,null,null,null,{"$f":"Lists!C29","v":"Montana"},{"$f":"Lists!B29","v":"British Virgin Islands"}]
[null,null,null,null,null,null,null,null,null,{"$f":"Lists!C30","v":"North Carolina"},{"$f":"Lists!B30","v":"Bulgaria"}]
[null,null,null,null,null,null,null,null,null,{"$f":"Lists!C31","v":"North Dakota"},{"$f":"Lists!B31","v":"Burkina Faso"}]
[null,null,null,null,null,null,null,null,null,{"$f":"Lists!C32","v":"Nebraska"},{"$f":"Lists!B32","v":"Burundi"}]
[null,null,null,null,null,null,null,null,null,{"$f":"Lists!C33","v":"New Hampshire"},{"$f":"Lists!B33","v":"Cambodia"}]
[null,null,null,null,null,null,null,null,null,{"$f":"Lists!C34","v":"New Jersey"},{"$f":"Lists!B34","v":"Cameroon"}]
[null,null,null,null,null,null,null,null,null,{"$f":"Lists!C35","v":"New Mexico"},{"$f":"Lists!B35","v":"Canada"}]
[null,null,null,null,null,null,null,null,null,{"$f":"Lists!C36","v":"Nevada"},{"$f":"Lists!B36","v":"Cape Verde"}]
[null,null,null,null,null,null,null,null,null,{"$f":"Lists!C37","v":"New York"},{"$f":"Lists!B37","v":"Central African Republic"}]
[null,null,null,null,null,null,null,null,null,{"$f":"Lists!C38","v":"Ohio"},{"$f":"Lists!B38","v":"Chad"}]
[null,null,null,null,null,null,null,null,null,{"$f":"Lists!C39","v":"Oklahoma"},{"$f":"Lists!B39","v":"Chile"}]
[null,null,null,null,null,null,null,null,null,{"$f":"Lists!C40","v":"Oregon"},{"$f":"Lists!B40","v":"China"}]
[null,null,null,null,null,null,null,null,null,{"$f":"Lists!C41","v":"Pennsylvania"},{"$f":"Lists!B41","v":"Colombia"}]
[null,null,null,null,null,null,null,null,null,{"$f":"Lists!C42","v":"Puerto Rico"},{"$f":"Lists!B42","v":"Comoros"}]
[null,null,null,null,null,null,null,null,null,{"$f":"Lists!C43","v":"Rhode Island"},{"$f":"Lists!B43","v":"Congo"}]
[null,null,null,null,null,null,null,null,null,{"$f":"Lists!C44","v":"South Carolina"},{"$f":"Lists!B44","v":"Cook Islands"}]
[null,null,null,null,null,null,null,null,null,{"$f":"Lists!C45","v":"South Dakota"},{"$f":"Lists!B45","v":"Costa Rica"}]
[null,null,null,null,null,null,null,null,null,{"$f":"Lists!C46","v":"Tennessee"},{"$f":"Lists!B46","v":"Cote d'Ivoire"}]
[null,null,null,null,null,null,null,null,null,{"$f":"Lists!C47","v":"Texas"},{"$f":"Lists!B47","v":"Croatia"}]
[null,null,null,null,null,null,null,null,null,{"$f":"Lists!C48","v":"Utah"},{"$f":"Lists!B48","v":"Cuba"}]
[null,null,null,null,null,null,null,null,null,{"$f":"Lists!C49","v":"Virginia"},{"$f":"Lists!B49","v":"Cyprus"}]
[null,null,null,null,null,null,null,null,null,{"$f":"Lists!C50","v":"US Virgin Islands"},{"$f":"Lists!B50","v":"Czech Republic"}]
[null,null,null,null,null,null,null,null,null,{"$f":"Lists!C51","v":"Vermont"},{"$f":"Lists!B51","v":"Democratic Republic of the Congo"}]
[null,null,null,null,null,null,null,null,null,{"$f":"Lists!C52","v":"Washington"},{"$f":"Lists!B52","v":"Denmark"}]
[null,null,null,null,null,null,null,null,null,{"$f":"Lists!C53","v":"Wisconsin"},{"$f":"Lists!B53","v":"Djibouti"}]
[null,null,null,null,null,null,null,null,null,{"$f":"Lists!C54","v":"West Virginia"},{"$f":"Lists!B54","v":"Dominica"}]
[null,null,null,null,null,null,null,null,null,{"$f":"Lists!C55","v":"Wyoming"},{"$f":"Lists!B55","v":"Dominican Republic"}]
[null,null,null,null,null,null,null,null,null,null,{"$f":"Lists!B56","v":"Ecuador"}]
[null,null,null,null,null,null,null,null,null,null,{"$f":"Lists!B57","v":"Egypt"}]
[null,null,null,null,null,null,null,null,null,null,{"$f":"Lists!B58","v":"El Salvador"}]
[null,null,null,null,null,null,null,null,null,null,{"$f":"Lists!B59","v":"Equatorial Guinea"}]
[null,null,null,null,null,null,null,null,null,null,{"$f":"Lists!B60","v":"Eritrea"}]
[null,null,null,null,null,null,null,null,null,null,{"$f":"Lists!B61","v":"Estonia"}]
[null,null,null,null,null,null,null,null,null,null,{"$f":"Lists!B62","v":"Ethiopia"}]
[null,null,null,null,null,null,null,null,null,null,{"$f":"Lists!B63","v":"European Union"}]
[null,null,null,null,null,null,null,null,null,null,{"$f":"Lists!B64","v":"Fiji"}]
[null,null,null,null,null,null,null,null,null,null,{"$f":"Lists!B65","v":"Finland"}]
[null,null,null,null,null,null,null,null,null,null,{"$f":"Lists!B66","v":"France"}]
[null,null,null,null,null,null,null,null,null,null,{"$f":"Lists!B67","v":"Gabon"}]
[null,null,null,null,null,null,null,null,null,null,{"$f":"Lists!B68","v":"Gambia"}]
[null,null,null,null,null,null,null,null,null,null,{"$f":"Lists!B69","v":"Georgia"}]
[null,null,null,null,null,null,null,null,null,null,{"$f":"Lists!B70","v":"Germany"}]
[null,null,null,null,null,null,null,null,null,null,{"$f":"Lists!B71","v":"Ghana"}]
[null,null,null,null,null,null,null,null,null,null,{"$f":"Lists!B72","v":"Greece"}]
[null,null,null,null,null,null,null,null,null,null,{"$f":"Lists!B73","v":"Grenada"}]
[null,null,null,null,null,null,null,null,null,null,{"$f":"Lists!B74","v":"Guatemala"}]
[null,null,null,null,null,null,null,null,null,null,{"$f":"Lists!B75","v":"Guinea"}]
[null,null,null,null,null,null,null,null,null,null,{"$f":"Lists!B76","v":"Guinea-Bissau"}]
[null,null,null,null,null,null,null,null,null,null,{"$f":"Lists!B77","v":"Guyana"}]
[null,null,null,null,null,null,null,null,null,null,{"$f":"Lists!B78","v":"Haiti"}]
[null,null,null,null,null,null,null,null,null,null,{"$f":"Lists!B79","v":"Holy See"}]
[null,null,null,null,null,null,null,null,null,null,{"$f":"Lists!B80","v":"Honduras"}]
[null,null,null,null,null,null,null,null,null,null,{"$f":"Lists!B81","v":"Hong Kong"}]
[null,null,null,null,null,null,null,null,null,null,{"$f":"Lists!B82","v":"Hungary"}]
[null,null,null,null,null,null,null,null,null,null,{"$f":"Lists!B83","v":"Iceland"}]
[null,null,null,null,null,null,null,null,null,null,{"$f":"Lists!B84","v":"India"}]
[null,null,null,null,null,null,null,null,null,null,{"$f":"Lists!B85","v":"Indonesia"}]
[null,null,null,null,null,null,null,null,null,null,{"$f":"Lists!B86","v":"Iran (Islamic Republic of)"}]
[null,null,null,null,null,null,null,null,null,null,{"$f":"Lists!B87","v":"Iraq"}]
[null,null,null,null,null,null,null,null,null,null,{"$f":"Lists!B88","v":"Ireland"}]
[null,null,null,null,null,null,null,null,null,null,{"$f":"Lists!B89","v":"Israel"}]
[null,null,null,null,null,null,null,null,null,null,{"$f":"Lists!B90","v":"Italy"}]
[null,null,null,null,null,null,null,null,null,null,{"$f":"Lists!B91","v":"Jamaica"}]
[null,null,null,null,null,null,null,null,null,null,{"$f":"Lists!B92","v":"Japan"}]
[null,null,null,null,null,null,null,null,null,null,{"$f":"Lists!B93","v":"Jordan"}]
[null,null,null,null,null,null,null,null,null,null,{"$f":"Lists!B94","v":"Kazakhstan"}]
[null,null,null,null,null,null,null,null,null,null,{"$f":"Lists!B95","v":"Kenya"}]
[null,null,null,null,null,null,null,null,null,null,{"$f":"Lists!B96","v":"Kiribati"}]
[null,null,null,null,null,null,null,null,null,null,{"$f":"Lists!B97","v":"Kuwait"}]
[null,null,null,null,null,null,null,null,null,null,{"$f":"Lists!B98","v":"Kyrgyzstan"}]
[null,null,null,null,null,null,null,null,null,null,{"$f":"Lists!B99","v":"Lao People's Democratic Republic"}]
[null,null,null,null,null,null,null,null,null,null,{"$f":"Lists!B100","v":"Latvia"}]
[null,null,null,null,null,null,null,null,null,null,{"$f":"Lists!B101","v":"Lebanon"}]
[null,null,null,null,null,null,null,null,null,null,{"$f":"Lists!B102","v":"Lesotho"}]
[null,null,null,null,null,null,null,null,null,null,{"$f":"Lists!B103","v":"Liberia"}]
[null,null,null,null,null,null,null,null,null,null,{"$f":"Lists!B104","v":"Libya"}]
[null,null,null,null,null,null,null,null,null,null,{"$f":"Lists!B105","v":"Liechtenstein"}]
[null,null,null,null,null,null,null,null,null,null,{"$f":"Lists!B106","v":"Lithuania"}]
[null,null,null,null,null,null,null,null,null,null,{"$f":"Lists!B107","v":"Luxembourg"}]
[null,null,null,null,null,null,null,null,null,null,{"$f":"Lists!B108","v":"Madagascar"}]
[null,null,null,null,null,null,null,null,null,null,{"$f":"Lists!B109","v":"Malawi"}]
[null,null,null,null,null,null,null,null,null,null,{"$f":"Lists!B110","v":"Malaysia"}]
[null,null,null,null,null,null,null,null,null,null,{"$f":"Lists!B111","v":"Maldives"}]
[null,null,null,null,null,null,null,null,null,null,{"$f":"Lists!B112","v":"Mali"}]
[null,null,null,null,null,null,null,null,null,null,{"$f":"Lists!B113","v":"Malta"}]
[null,null,null,null,null,null,null,null,null,null,{"$f":"Lists!B114","v":"Marshall Islands"}]
[null,null,null,null,null,null,null,null,null,null,{"$f":"Lists!B115","v":"Mauritania"}]
[null,null,null,null,null,null,null,null,null,null,{"$f":"Lists!B116","v":"Mauritius"}]
[null,null,null,null,null,null,null,null,null,null,{"$f":"Lists!B117","v":"Mexico"}]
[null,null,null,null,null,null,null,null,null,null,{"$f":"Lists!B118","v":"Micronesia (Federated States of)"}]
[null,null,null,null,null,null,null,null,null,null,{"$f":"Lists!B119","v":"Monaco"}]
[null,null,null,null,null,null,null,null,null,null,{"$f":"Lists!B120","v":"Mongolia"}]
[null,null,null,null,null,null,null,null,null,null,{"$f":"Lists!B121","v":"Montenegro"}]
[null,null,null,null,null,null,null,null,null,null,{"$f":"Lists!B122","v":"Morocco"}]
[null,null,null,null,null,null,null,null,null,null,{"$f":"Lists!B123","v":"Mozambique"}]
[null,null,null,null,null,null,null,null,null,null,{"$f":"Lists!B124","v":"Myanmar"}]
[null,null,null,null,null,null,null,null,null,null,{"$f":"Lists!B125","v":"Namibia"}]
[null,null,null,null,null,null,null,null,null,null,{"$f":"Lists!B126","v":"Nauru"}]
[null,null,null,null,null,null,null,null,null,null,{"$f":"Lists!B127","v":"Nepal"}]
[null,null,null,null,null,null,null,null,null,null,{"$f":"Lists!B128","v":"Netherlands"}]
[null,null,null,null,null,null,null,null,null,null,{"$f":"Lists!B129","v":"New Zealand"}]
[null,null,null,null,null,null,null,null,null,null,{"$f":"Lists!B130","v":"Nicaragua"}]
[null,null,null,null,null,null,null,null,null,null,{"$f":"Lists!B131","v":"Niger"}]
[null,null,null,null,null,null,null,null,null,null,{"$f":"Lists!B132","v":"Nigeria"}]
[null,null,null,null,null,null,null,null,null,null,{"$f":"Lists!B133","v":"Niue"}]
[null,null,null,null,null,null,null,null,null,null,{"$f":"Lists!B134","v":"North Korea (Democratic People's Republic of Korea)"}]
[null,null,null,null,null,null,null,null,null,null,{"$f":"Lists!B135","v":"Norway"}]
[null,null,null,null,null,null,null,null,null,null,{"$f":"Lists!B136","v":"Oman"}]
[null,null,null,null,null,null,null,null,null,null,{"$f":"Lists!B137","v":"Pakistan"}]
[null,null,null,null,null,null,null,null,null,null,{"$f":"Lists!B138","v":"Palau"}]
[null,null,null,null,null,null,null,null,null,null,{"$f":"Lists!B139","v":"Panama"}]
[null,null,null,null,null,null,null,null,null,null,{"$f":"Lists!B140","v":"Papua New Guinea"}]
[null,null,null,null,null,null,null,null,null,null,{"$f":"Lists!B141","v":"Paraguay"}]
[null,null,null,null,null,null,null,null,null,null,{"$f":"Lists!B142","v":"Peru"}]
[null,null,null,null,null,null,null,null,null,null,{"$f":"Lists!B143","v":"Philippines"}]
[null,null,null,null,null,null,null,null,null,null,{"$f":"Lists!B144","v":"Poland"}]
[null,null,null,null,null,null,null,null,null,null,{"$f":"Lists!B145","v":"Portugal"}]
[null,null,null,null,null,null,null,null,null,null,{"$f":"Lists!B146","v":"Qatar"}]
[null,null,null,null,null,null,null,null,null,null,{"$f":"Lists!B147","v":"Republic of Moldova"}]
[null,null,null,null,null,null,null,null,null,null,{"$f":"Lists!B148","v":"Romania"}]
[null,null,null,null,null,null,null,null,null,null,{"$f":"Lists!B149","v":"Russian Federation"}]
[null,null,null,null,null,null,null,null,null,null,{"$f":"Lists!B150","v":"Rwanda"}]
[null,null,null,null,null,null,null,null,null,null,{"$f":"Lists!B151","v":"Saint Kitts and Nevis"}]
[null,null,null,null,null,null,null,null,null,null,{"$f":"Lists!B152","v":"Saint Lucia"}]
[null,null,null,null,null,null,null,null,null,null,{"$f":"Lists!B153","v":"Saint Vincent and the Grenadines"}]
[null,null,null,null,null,null,null,null,null,null,{"$f":"Lists!B154","v":"Samoa"}]
[null,null,null,null,null,null,null,null,null,null,{"$f":"Lists!B155","v":"San Marino"}]
[null,null,null,null,null,null,null,null,null,null,{"$f":"Lists!B156","v":"Sao Tome and Principe"}]
[null,null,null,null,null,null,null,null,null,null,{"$f":"Lists!B157","v":"Saudi Arabia"}]
[null,null,null,null,null,null,null,null,null,null,{"$f":"Lists!B158","v":"Senegal"}]
[null,null,null,null,null,null,null,null,null,null,{"$f":"Lists!B159","v":"Serbia"}]
[null,null,null,null,null,null,null,null,null,null,{"$f":"Lists!B160","v":"Seychelles"}]
[null,null,null,null,null,null,null,null,null,null,{"$f":"Lists!B161","v":"Sierra Leone"}]
[null,null,null,null,null,null,null,null,null,null,{"$f":"Lists!B162","v":"Singapore"}]
[null,null,null,null,null,null,null,null,null,null,{"$f":"Lists!B163","v":"Slovakia"}]
[null,null,null,null,null,null,null,null,null,null,{"$f":"Lists!B164","v":"Slovenia"}]
[null,null,null,null,null,null,null,null,null,null,{"$f":"Lists!B165","v":"Solomon Islands"}]
[null,null,null,null,null,null,null,null,null,null,{"$f":"Lists!B166","v":"Somalia (Federal Republic of)"}]
[null,null,null,null,null,null,null,null,null,null,{"$f":"Lists!B167","v":"South Africa"}]
[null,null,null,null,null,null,null,null,null,null,{"$f":"Lists!B168","v":"South Korea (Republic of Korea)"}]
[null,null,null,null,null,null,null,null,null,null,{"$f":"Lists!B169","v":"South Sudan"}]
[null,null,null,null,null,null,null,null,null,null,{"$f":"Lists!B170","v":"Spain"}]
[null,null,null,null,null,null,null,null,null,null,{"$f":"Lists!B171","v":"Sri Lanka"}]
[null,null,null,null,null,null,null,null,null,null,{"$f":"Lists!B172","v":"Sudan"}]
[null,null,null,null,null,null,null,null,null,null,{"$f":"Lists!B173","v":"Suriname"}]
[null,null,null,null,null,null,null,null,null,null,{"$f":"Lists!B174","v":"Swaziland"}]
[null,null,null,null,null,null,null,null,null,null,{"$f":"Lists!B175","v":"Sweden"}]
[null,null,null,null,null,null,null,null,null,null,{"$f":"Lists!B176","v":"Switzerland"}]
[null,null,null,null,null,null,null,null,null,null,{"$f":"Lists!B177","v":"Syrian Arab Republic"}]
[null,null,null,null,null,null,null,null,null,null,{"$f":"Lists!B178","v":"Tahiti"}]
[null,null,null,null,null,null,null,null,null,null,{"$f":"Lists!B179","v":"Taiwan"}]
[null,null,null,null,null,null,null,null,null,null,{"$f":"Lists!B180","v":"Tajikistan"}]
[null,null,null,null,null,null,null,null,null,null,{"$f":"Lists!B181","v":"Thailand"}]
[null,null,null,null,null,null,null,null,null,null,{"$f":"Lists!B182","v":"The Former Yugoslav Republic of Macedonia"}]
[null,null,null,null,null,null,null,null,null,null,{"$f":"Lists!B183","v":"Timor-Leste"}]
[null,null,null,null,null,null,null,null,null,null,{"$f":"Lists!B184","v":"Togo"}]
[null,null,null,null,null,null,null,null,null,null,{"$f":"Lists!B185","v":"Tonga"}]
[null,null,null,null,null,null,null,null,null,null,{"$f":"Lists!B186","v":"Trinidad and Tobago"}]
[null,null,null,null,null,null,null,null,null,null,{"$f":"Lists!B187","v":"Tunisia"}]
[null,null,null,null,null,null,null,null,null,null,{"$f":"Lists!B188","v":"Turkey"}]
[null,null,null,null,null,null,null,null,null,null,{"$f":"Lists!B189","v":"Turkmenistan"}]
[null,null,null,null,null,null,null,null,null,null,{"$f":"Lists!B190","v":"Tuvalu"}]
[null,null,null,null,null,null,null,null,null,null,{"$f":"Lists!B191","v":"Uganda"}]
[null,null,null,null,null,null,null,null,null,null,{"$f":"Lists!B192","v":"Ukraine"}]
[null,null,null,null,null,null,null,null,null,null,{"$f":"Lists!B193","v":"United Arab Emirates"}]
[null,null,null,null,null,null,null,null,null,null,{"$f":"Lists!B194","v":"United Kingdom of Great Britain and Northern Ireland"}]
[null,null,null,null,null,null,null,null,null,null,{"$f":"Lists!B195","v":"United Republic of Tanzania"}]
[null,null,null,null,null,null,null,null,null,null,{"$f":"Lists!B196","v":"United States of America"}]
[null,null,null,null,null,null,null,null,null,null,{"$f":"Lists!B197","v":"Uruguay"}]
[null,null,null,null,null,null,null,null,null,null,{"$f":"Lists!B198","v":"Uzbekistan"}]
[null,null,null,null,null,null,null,null,null,null,{"$f":"Lists!B199","v":"Vanuatu"}]
[null,null,null,null,null,null,null,null,null,null,{"$f":"Lists!B200","v":"Venezuela (Bolivarian Republic of)"}]
[null,null,null,null,null,null,null,null,null,null,{"$f":"Lists!B201","v":"Viet Nam"}]
[null,null,null,null,null,null,null,null,null,null,{"$f":"Lists!B202","v":"Yemen"}]
[null,null,null,null,null,null,null,null,null,null,{"$f":"Lists!B203","v":"Zambia"}]
[null,null,null,null,null,null,null,null,null,null,{"$f":"Lists!B204","v":"Zimbabwe"}]

{"sheet":"Summary","index":3,"n_rows":18,"n_cols":7,"rows_kept":18,"cut":false,"hidden":false,"merged":[[8,3,8,6],[9,3,10,3],[9,4,9,6],[2,3,2,6]]}
[]
[null,null,null,"U.S. Environmental Protection Agency"]
[null,null,null,"Class II Trades Report "]
[]
[null,null,null,"Company Name:",{"$f":"IF('Section 1'!D9=0,\"\",'Section 1'!D9)","v":""}]
[null,null,null,"Reporting Period:",{"$f":"IF('Section 1'!D11=0,\"\",'Section 1'!D11)","v":""}]
[]
[null,null,null,"Allowance Summary"]
[null,null,null,"The values in the table below are calculated based on data entered in Section 2.  If the totals appear to be incorrect, please return to Section 2 to review your data."]
[null,null,null,"Chemical Name","Allowances Expended by Transferor (kg)"]
[null,null,null,null,"Production","Consumption","Article 5"]
[1,null,null,{"$f":"IFERROR(VLOOKUP(A12, 'Section 2'!A22:H31, 8, FALSE), \"\")","v":""},{"$f":"IF(D12=\"\", \"\", SUMIFS('Section 2'!$N$22:$N$31, 'Section 2'!$H$22:$H$31, Summary!$D12, 'Section 2'!$E$22:$E$31, Lists!$G$3))","v":""},{"$f":"IF(D12=\"\", \"\", SUMIFS('Section 2'!$N$22:$N$31, 'Section 2'!$H$22:$H$31, Summary!$D12, 'Section 2'!$E$22:$E$31, Lists!$G$4))","v":""},{"$f":"IF(D12=\"\",\"\", SUMIFS('Section 2'!$N$22:$N$31, 'Section 2'!$H$22:$H$31, Summary!$D12, 'Section 2'!$E$22:$E$31, Lists!#REF!))","v":""}]
[2,null,null,{"$f":"IFERROR(VLOOKUP(A13, 'Section 2'!A23:H32, 8, FALSE), \"\")","v":""},{"$f":"IF(D13=\"\", \"\", SUMIFS('Section 2'!$N$22:$N$31, 'Section 2'!$H$22:$H$31, Summary!$D13, 'Section 2'!$E$22:$E$31, Lists!$G$3))","v":""},{"$f":"IF(D13=\"\", \"\", SUMIFS('Section 2'!$N$22:$N$31, 'Section 2'!$H$22:$H$31, Summary!$D13, 'Section 2'!$E$22:$E$31, Lists!$G$4))","v":""},{"$f":"IF(D13=\"\",\"\", SUMIFS('Section 2'!$N$22:$N$31, 'Section 2'!$H$22:$H$31, Summary!$D13, 'Section 2'!$E$22:$E$31, Lists!#REF!))","v":""}]
[3,null,null,{"$f":"IFERROR(VLOOKUP(A14, 'Section 2'!A24:H33, 8, FALSE), \"\")","v":""},{"$f":"IF(D14=\"\", \"\", SUMIFS('Section 2'!$N$22:$N$31, 'Section 2'!$H$22:$H$31, Summary!$D14, 'Section 2'!$E$22:$E$31, Lists!$G$3))","v":""},{"$f":"IF(D14=\"\", \"\", SUMIFS('Section 2'!$N$22:$N$31, 'Section 2'!$H$22:$H$31, Summary!$D14, 'Section 2'!$E$22:$E$31, Lists!$G$4))","v":""},{"$f":"IF(D14=\"\",\"\", SUMIFS('Section 2'!$N$22:$N$31, 'Section 2'!$H$22:$H$31, Summary!$D14, 'Section 2'!$E$22:$E$31, Lists!#REF!))","v":""}]
[4,null,null,{"$f":"IFERROR(VLOOKUP(A15, 'Section 2'!A25:H34, 8, FALSE), \"\")","v":""},{"$f":"IF(D15=\"\", \"\", SUMIFS('Section 2'!$N$22:$N$31, 'Section 2'!$H$22:$H$31, Summary!$D15, 'Section 2'!$E$22:$E$31, Lists!$G$3))","v":""},{"$f":"IF(D15=\"\", \"\", SUMIFS('Section 2'!$N$22:$N$31, 'Section 2'!$H$22:$H$31, Summary!$D15, 'Section 2'!$E$22:$E$31, Lists!$G$4))","v":""},{"$f":"IF(D15=\"\",\"\", SUMIFS('Section 2'!$N$22:$N$31, 'Section 2'!$H$22:$H$31, Summary!$D15, 'Section 2'!$E$22:$E$31, Lists!#REF!))","v":""}]
[5,null,null,{"$f":"IFERROR(VLOOKUP(A16, 'Section 2'!A26:H35, 8, FALSE), \"\")","v":""},{"$f":"IF(D16=\"\", \"\", SUMIFS('Section 2'!$N$22:$N$31, 'Section 2'!$H$22:$H$31, Summary!$D16, 'Section 2'!$E$22:$E$31, Lists!$G$3))","v":""},{"$f":"IF(D16=\"\", \"\", SUMIFS('Section 2'!$N$22:$N$31, 'Section 2'!$H$22:$H$31, Summary!$D16, 'Section 2'!$E$22:$E$31, Lists!$G$4))","v":""},{"$f":"IF(D16=\"\",\"\", SUMIFS('Section 2'!$N$22:$N$31, 'Section 2'!$H$22:$H$31, Summary!$D16, 'Section 2'!$E$22:$E$31, Lists!#REF!))","v":""}]
[6,null,null,{"$f":"IFERROR(VLOOKUP(A17, 'Section 2'!A27:H36, 8, FALSE), \"\")","v":""},{"$f":"IF(D17=\"\", \"\", SUMIFS('Section 2'!$N$22:$N$31, 'Section 2'!$H$22:$H$31, Summary!$D17, 'Section 2'!$E$22:$E$31, Lists!$G$3))","v":""},{"$f":"IF(D17=\"\", \"\", SUMIFS('Section 2'!$N$22:$N$31, 'Section 2'!$H$22:$H$31, Summary!$D17, 'Section 2'!$E$22:$E$31, Lists!$G$4))","v":""},{"$f":"IF(D17=\"\",\"\", SUMIFS('Section 2'!$N$22:$N$31, 'Section 2'!$H$22:$H$31, Summary!$D17, 'Section 2'!$E$22:$E$31, Lists!#REF!))","v":""}]
[7,null,null,{"$f":"IFERROR(VLOOKUP(A18, 'Section 2'!A28:H37, 8, FALSE), \"\")","v":""},{"$f":"IF(D18=\"\", \"\", SUMIFS('Section 2'!$N$22:$N$31, 'Section 2'!$H$22:$H$31, Summary!$D18, 'Section 2'!$E$22:$E$31, Lists!$G$3))","v":""},{"$f":"IF(D18=\"\", \"\", SUMIFS('Section 2'!$N$22:$N$31, 'Section 2'!$H$22:$H$31, Summary!$D18, 'Section 2'!$E$22:$E$31, Lists!$G$4))","v":""},{"$f":"IF(D18=\"\",\"\", SUMIFS('Section 2'!$N$22:$N$31, 'Section 2'!$H$22:$H$31, Summary!$D18, 'Section 2'!$E$22:$E$31, Lists!#REF!))","v":""}]

{"sheet":"Reference List","index":4,"n_rows":78,"n_cols":9,"rows_kept":78,"cut":false,"hidden":false,"merged":[[71,7,72,7],[51,8,52,8],[64,8,65,8],[16,2,16,4],[5,2,5,8],[6,6,6,8],[8,6,8,8],[6,2,6,4],[13,2,14,4],[8,2,8,3]]}
[]
[null,null,"U.S. Environmental Protection Agency"]
[null,null,"Class II Trades Report "]
[null,null,"Reference List"]
[]
[null,null,"Copying and Pasting Data: If data is pasted into this reporting form from another spreadsheet, the formatting of specific cells must be consistent with the requirements of the form in order to be accepted into EPA’s ODS tracking system. When copying and pasting data into the form, please ensure consistency with the formatting of the lists provided below."]
[null,null,"Chemical Name List: The table below lists the valid chemical names that may be used when entering data into Section 2 of this form. ",null,null,null,"Country List: The table below lists the valid country names that may be used when entering data into Section 2 of this form. "]
[]
[null,null,"Class II Chemicals with Allowances",null,null,null,"Source Country "]
[null,null,"HCFC-123","HCFC-124",null,null,"Afghanistan","Greece","Papua New Guinea"]
[null,null,null,null,null,null,"Albania","Grenada","Paraguay"]
[null,null,null,null,null,null,"Algeria","Guatemala","Peru"]
[null,null,null,null,null,null,"Andorra","Guinea","Philippines"]
[null,null,"State List: The table below lists the valid state names that may be used when entering data into Section 2 of this form. ",null,null,null,"Angola","Guinea-Bissau","Poland"]
[null,null,null,null,null,null,"Antigua and Barbuda","Guyana","Portugal"]
[null,null,null,null,null,null,"Argentina","Haiti","Qatar"]
[null,null,"States",null,null,null,"Armenia","Holy See","Republic of Moldova"]
[null,null,"Alaska","Louisiana","Oklahoma",null,"Australia","Honduras","Romania"]
[null,null,"Alabama","Massachusetts","Oregon",null,"Austria","Hong Kong","Russian Federation"]
[null,null,"Arkansas","Maryland","Pennsylvania",null,"Azerbaijan","Hungary","Rwanda"]
[null,null,"Arizona","Maine","Puerto Rico",null,"Bahamas","Iceland","Saint Kitts and Nevis"]
[null,null,"California","Michigan","Rhode Island",null,"Bahrain","India","Saint Lucia"]
[null,null,"Colorado","Minnesota","South Carolina",null,"Bangladesh","Indonesia","Saint Vincent and the Grenadines"]
[null,null,"Connecticut","Missouri","South Dakota",null,"Barbados","Iran (Islamic Republic of)","Samoa"]
[null,null,"District of Columbia","Mississippi","Tennessee",null,"Belarus","Iraq","San Marino"]
[null,null,"Delaware","Montana","Texas",null,"Belgium","Ireland","Sao Tome and Principe"]
[null,null,"Florida","North Carolina","Utah",null,"Belize","Israel","Saudi Arabia"]
[null,null,"Georgia","North Dakota","Virginia",null,"Benin","Italy","Senegal"]
[null,null,"Hawaii","Nebraska","US Virgin Islands",null,"Bermuda","Jamaica","Serbia"]
[null,null,"Iowa","New Hampshire","Vermont",null,"Bhutan","Japan","Seychelles"]
[null,null,"Idaho","New Jersey","Washington",null,"Bolivia (Plurinational State of)","Jordan","Sierra Leone"]
[null,null,"Illinois","New Mexico","Wisconsin",null,"Bosnia and Herzegovina","Kazakhstan","Singapore"]
[null,null,"Indiana","Nevada","West Virginia",null,"Botswana","Kenya","Slovakia"]
[null,null,"Kansas","New York","Wyoming",null,"Brazil","Kiribati","Slovenia"]
[null,null,"Kentucky","Ohio",null,null,"Brunei Darussalam","Kuwait","Solomon Islands"]
[null,null,null,null,null,null,"British Virgin Islands","Kyrgyzstan","Somalia (Federal Republic of)"]
[null,null,null,null,null,null,"Bulgaria","Lao People's Democratic Republic","South Africa"]
[null,null,null,null,null,null,"Burkina Faso","Latvia","South Korea (Republic of Korea)"]
[null,null,null,null,null,null,"Burundi","Lebanon","South Sudan"]
[null,null,null,null,null,null,"Cambodia","Lesotho","Spain"]
[null,null,null,null,null,null,"Cameroon","Liberia","Sri Lanka"]
[null,null,null,null,null,null,"Canada","Libya","Sudan"]
[null,null,null,null,null,null,"Cape Verde","Liechtenstein","Suriname"]
[null,null,null,null,null,null,"Central African Republic","Lithuania","Swaziland"]
[null,null,null,null,null,null,"Chad","Luxembourg","Sweden"]
[null,null,null,null,null,null,"Chile","Madagascar","Switzerland"]
[null,null,null,null,null,null,"China","Malawi","Syrian Arab Republic"]
[null,null,null,null,null,null,"Colombia","Malaysia","Tahiti"]
[null,null,null,null,null,null,"Comoros","Maldives","Taiwan"]
[null,null,null,null,null,null,"Congo","Mali","Tajikistan"]
[null,null,null,null,null,null,"Cook Islands","Malta","Thailand"]
[null,null,null,null,null,null,"Costa Rica","Marshall Islands","The Former Yugoslav Republic of Macedonia"]
[null,null,null,null,null,null,"Cote d'Ivoire","Mauritania"]
[null,null,null,null,null,null,"Croatia","Mauritius","Timor-Leste"]
[null,null,null,null,null,null,"Cuba","Mexico","Togo"]
[null,null,null,null,null,null,"Cyprus","Micronesia (Federated States of)","Tonga"]
[null,null,null,null,null,null,"Czech Republic","Monaco","Trinidad and Tobago"]
[null,null,null,null,null,null,"Democratic Republic of the Congo","Mongolia","Tunisia"]
[null,null,null,null,null,null,"Denmark","Montenegro","Turkey"]
[null,null,null,null,null,null,"Djibouti","Morocco","Turkmenistan"]
[null,null,null,null,null,null,"Dominica","Mozambique","Tuvalu"]
[null,null,null,null,null,null,"Dominican Republic","Myanmar","Uganda"]
[null,null,null,null,null,null,"Ecuador","Namibia","Ukraine"]
[null,null,null,null,null,null,"Egypt","Nauru","United Arab Emirates"]
[null,null,null,null,null,null,"El Salvador","Nepal","United Kingdom of Great Britain and Northern Ireland"]
[null,null,null,null,null,null,"Equatorial Guinea","Netherlands"]
[null,null,null,null,null,null,"Eritrea","New Zealand","United Republic of Tanzania"]
[null,null,null,null,null,null,"Estonia","Nicaragua","United States of America"]
[null,null,null,null,null,null,"Ethiopia","Niger","Uruguay"]
[null,null,null,null,null,null,"European Union","Nigeria","Uzbekistan"]
[null,null,null,null,null,null,"Fiji","Niue","Vanuatu"]
[null,null,null,null,null,null,"Finland","North Korea (Democratic People's Republic of Korea)","Venezuela (Bolivarian Republic of)"]
[null,null,null,null,null,null,"France",null,"Viet Nam"]
[null,null,null,null,null,null,"Gabon","Norway","Yemen"]
[null,null,null,null,null,null,"Gambia","Oman","Zambia"]
[null,null,null,null,null,null,"Georgia","Pakistan","Zimbabwe"]
[null,null,null,null,null,null,"Germany","Palau"]
[null,null,null,null,null,null,"Ghana","Panama"]

{"sheet":"Checks","index":5,"n_rows":18,"n_cols":5,"rows_kept":18,"cut":false,"hidden":true,"merged":[]}
[]
[null,"Section","Check Description","Status (1 = Incomplete, 0 = Complete)","Check Type"]
[null,"Section 1","All",{"$f":"IF(SUM('Section 1'!F9:F11)>0,1,0)","v":1},"Error"]
[null,"Section 2","Complete?",{"$f":"IF(SUM('Section 2'!$U$22:$U$31,'Section 2'!$T$14:$V$14)>0,1,0)","v":0},"Stopper"]
[null,"Section 2","Transferee Company?",{"$f":"IF('Section 2'!D14:K14<>\"\",0,1)","v":1},"Stopper"]
[null,"Section 2","Valid State if USA",{"$f":"IF('Section 2'!$U$14>0,1,0)","v":0},"Stopper"]
[null,"Section 2","Valid Country",{"$f":"IF('Section 2'!$V$14>0,1,0)","v":0},"Stopper"]
[null,"Section 2","Valid Chemical",{"$f":"IF(SUM('Section 2'!V22:W31)>0, 1, 0)","v":0},"Stopper"]
[null,"Section 2","Inter-pollutant check (Baseline)",{"$f":"IF(SUM('Section 2'!$X$22:$X$31)>0,1,0)","v":0},"Stopper"]
[null,"Section 2","Negative Numbers?",{"$f":"IF(SUM('Section 2'!Y22:Y31)>0,1,0)","v":0},"Stopper"]
[null,"Section 2","Error Check",{"$f":"IF(SUM(D4:D10)>0,1,0)","v":1},"Error"]
[null,"All","Error Check",{"$f":"IF(SUM(Sec1Status,Sec2Error)>0,1,0)","v":1},"Error"]
[]
[]
[]
[null,"Numerical Checks against Output for CSV"]
[null,"Section 2","Total Quantity of Class II Chemical Allowances Traded",{"$f":"SUMIF('Section 2'!$T$22:$T$31,\"Y\",'Section 2'!J22:J31)-SUM(OutputForCSV!J3:J11)","v":0}]
[null,"ALL","TOTAL CHECK",{"$f":"SUM(D17:D17)","v":0}]

{"sheet":"Lists","index":6,"n_rows":204,"n_cols":22,"rows_kept":204,"cut":false,"hidden":true,"merged":[[0,14,0,15],[0,10,0,11]]}
[null,null,null,null,null,null,null,null,null,null,"ODP Table",null,null,null,"FOR REFERENCE ONLY"]
[null,"Country List","States","Submission Type","Reporting Year","Year Range","Class II Allownace Types","Allowance Type: Current or Baseline","Allowance Type: Domestic or International","Class II Chemicals w/ Allowances","Class II Chemicals","ODP","Date for CSV Title","Form Name for CSV Title","Form Type","Form Code",null,"Incorrect Capitalizations","Correct Capitalization",null,"Invalid Character","Replacement Character"]
[null,"Afghanistan","Alaska","Original Submission",2018,{"$f":"IF(ReportYr=Lists!$E$3,DATE(Lists!$E$3,1,1),IF(ReportYr=Lists!$E$4,DATE(Lists!$E$4,1,1),IF(ReportYr=Lists!$E$5,DATE(Lists!$E$5,1,1),0)))","v":"00:00:00"},"Production","Current","Domestic","HCFC-123","HCFC-123",0.02,{"$f":"MONTH('Section 1'!D5)&\"-\"&DAY('Section 1'!D5)&\"-\"&YEAR('Section 1'!D5)","v":"7-15-2020"},"Class II Trades","Class I Producer","PROD1",null,"hcfc","HCFC",null,"À","A"]
[null,"Albania","Alabama","Re-Submittal",2019,{"$f":"IF(ReportYr=Lists!$E$3,DATE(Lists!$E$3,12,31),IF(ReportYr=Lists!$E$4,DATE(Lists!$E$4,12,31),IF(ReportYr=Lists!$E$5,DATE(Lists!$E$5,12,31),0)))","v":"00:00:00"},"Consumption","Baseline",null,"HCFC-124","HCFC-124",2.1999999999999999E-2,null,null,"MeBr Producer","PROD3",null,null,null,null,"Á","A"]
[null,"Algeria","Arkansas",null,2020,null,null,null,null,null,null,null,null,null,"Class II Producer","PROD2",null,null,null,null,"Ã","A"]
[null,"Andorra","Arizona",null,2021,null,null,null,null,null,null,null,null,null,"Class I Importer","IMPT1",null,null,null,null,"Ä","A"]
[null,"Angola","California",null,2022,null,null,null,null,null,null,null,null,null,"MeBr Importer","IMPT3",null,null,null,null,"Â","A"]
[null,"Antigua and Barbuda","Colorado",null,2023,null,null,null,null,null,null,null,null,null,"Class II Importer","IMPT2",null,null,null,null,"Å","A"]
[null,"Argentina","Connecticut",null,2024,null,null,null,null,null,null,null,null,null,"Class I Exporter","EXPT1",null,null,null,null,"È","E"]
[null,"Armenia","District of Columbia",null,2025,null,null,null,null,null,null,null,null,null,"MeBr Exporter","EXPT3",null,null,null,null,"É","E"]
[null,"Australia","Delaware",null,2026,null,null,null,null,null,null,null,null,null,"Class II Exporter","EXPT2",null,null,null,null,"Ê","E"]
[null,"Austria","Florida",null,2027,null,null,null,null,null,null,null,null,null,"Class I Lab Supplier","LABS1",null,null,null,null,"Ë","E"]
[null,"Azerbaijan","Georgia",null,2028,null,null,null,null,null,null,null,null,null,"Class I Destruction","DEST1",null,null,null,null,"Ì","I"]
[null,"Bahamas","Hawaii",null,2029,null,null,null,null,null,null,null,null,null,"MeBr Destruction","DEST3",null,null,null,null,"Í","I"]
[null,"Bahrain","Iowa",null,null,null,null,null,null,null,null,null,null,null,"Class II Destruction","DEST2",null,null,null,null,"Í","I"]
[null,"Bangladesh","Idaho",null,null,null,null,null,null,null,null,null,null,null,"Class I Transformation","TRAN1",null,null,null,null,"Ï","I"]
[null,"Barbados","Illinois",null,null,null,null,null,null,null,null,null,null,null,"MeBr Transformation","TRAN3",null,null,null,null,"Ò","O"]
[null,"Belarus","Indiana",null,null,null,null,null,null,null,null,null,null,null,"Class II Transformation","TRAN2",null,null,null,null,"Ó","O"]
[null,"Belgium","Kansas",null,null,null,null,null,null,null,null,null,null,null,"MeBr Trades","TRAD3",null,null,null,null,"Ô","O"]
[null,"Belize","Kentucky",null,null,null,null,null,null,null,null,null,null,null,"Class II Trades","TRAD2",null,null,null,null,"Ö","O"]
[null,"Benin","Louisiana",null,null,null,null,null,null,null,null,null,null,null,"Class II RACA","RACA2",null,null,null,null,"Õ","O"]
[null,"Bermuda","Massachusetts",null,null,null,null,null,null,null,null,null,null,null,"MeBr Distributor of QPS","MBQPS",null,null,null,null,"Ù","U"]
[null,"Bhutan","Maryland",null,null,null,null,null,null,null,null,null,null,null,"MeBr Pre-2005 Stocks","MB05S",null,null,null,null,"Ú","U"]
[null,"Bolivia (Plurinational State of)","Maine",null,null,null,null,null,null,null,null,null,null,null,"MeBr Sales of CU","MBCUE",null,null,null,null,"Û","U"]
[null,"Bosnia and Herzegovina","Michigan",null,null,null,null,null,null,null,null,null,null,null,null,null,null,null,null,null,"Ü","U"]
[null,"Botswana","Minnesota",null,null,null,null,null,null,null,null,null,null,null,null,null,null,null,null,null,"Ç","C"]
[null,"Brazil","Missouri",null,null,null,null,null,null,null,null,null,null,null,null,null,null,null,null,null,"Ñ","N"]
[null,"Brunei Darussalam","Mississippi",null,null,null,null,null,null,null,null,null,null,null,null,null,null,null,null,null," "," "]
[null,"British Virgin Islands","Montana",null,null,null,null,null,null,null,null,null,null,null,null,null,null,null,null,null," "," "]
[null,"Bulgaria","North Carolina",null,null,null,null,null,null,null,null,null,null,null,null,null,null,null,null,null,"–"," "]
[null,"Burkina Faso","North Dakota",null,null,null,null,null,null,null,null,null,null,null,null,null,null,null,null,null,"—"," "]
[null,"Burundi","Nebraska"]
[null,"Cambodia","New Hampshire"]
[null,"Cameroon","New Jersey"]
[null,"Canada","New Mexico"]
[null,"Cape Verde","Nevada"]
[null,"Central African Republic","New York"]
[null,"Chad","Ohio"]
[null,"Chile","Oklahoma"]
[null,"China","Oregon"]
[null,"Colombia","Pennsylvania"]
[null,"Comoros","Puerto Rico"]
[null,"Congo","Rhode Island"]
[null,"Cook Islands","South Carolina"]
[null,"Costa Rica","South Dakota"]
[null,"Cote d'Ivoire","Tennessee"]
[null,"Croatia","Texas"]
[null,"Cuba","Utah"]
[null,"Cyprus","Virginia"]
[null,"Czech Republic","US Virgin Islands"]
[null,"Democratic Republic of the Congo","Vermont"]
[null,"Denmark","Washington"]
[null,"Djibouti","Wisconsin"]
[null,"Dominica","West Virginia"]
[null,"Dominican Republic","Wyoming"]
[null,"Ecuador"]
[null,"Egypt"]
[null,"El Salvador"]
[null,"Equatorial Guinea"]
[null,"Eritrea"]
[null,"Estonia"]
[null,"Ethiopia"]
[null,"European Union"]
[null,"Fiji"]
[null,"Finland"]
[null,"France"]
[null,"Gabon"]
[null,"Gambia"]
[null,"Georgia"]
[null,"Germany"]
[null,"Ghana"]
[null,"Greece"]
[null,"Grenada"]
[null,"Guatemala"]
[null,"Guinea"]
[null,"Guinea-Bissau"]
[null,"Guyana"]
[null,"Haiti"]
[null,"Holy See"]
[null,"Honduras"]
[null,"Hong Kong"]
[null,"Hungary"]
[null,"Iceland"]
[null,"India"]
[null,"Indonesia"]
[null,"Iran (Islamic Republic of)"]
[null,"Iraq"]
[null,"Ireland"]
[null,"Israel"]
[null,"Italy"]
[null,"Jamaica"]
[null,"Japan"]
[null,"Jordan"]
[null,"Kazakhstan"]
[null,"Kenya"]
[null,"Kiribati"]
[null,"Kuwait"]
[null,"Kyrgyzstan"]
[null,"Lao People's Democratic Republic"]
[null,"Latvia"]
[null,"Lebanon"]
[null,"Lesotho"]
[null,"Liberia"]
[null,"Libya"]
[null,"Liechtenstein"]
[null,"Lithuania"]
[null,"Luxembourg"]
[null,"Madagascar"]
[null,"Malawi"]
[null,"Malaysia"]
[null,"Maldives"]
[null,"Mali"]
[null,"Malta"]
[null,"Marshall Islands"]
[null,"Mauritania"]
[null,"Mauritius"]
[null,"Mexico"]
[null,"Micronesia (Federated States of)"]
[null,"Monaco"]
[null,"Mongolia"]
[null,"Montenegro"]
[null,"Morocco"]
[null,"Mozambique"]
[null,"Myanmar"]
[null,"Namibia"]
[null,"Nauru"]
[null,"Nepal"]
[null,"Netherlands"]
[null,"New Zealand"]
[null,"Nicaragua"]
[null,"Niger"]
[null,"Nigeria"]
[null,"Niue"]
[null,"North Korea (Democratic People's Republic of Korea)"]
[null,"Norway"]
[null,"Oman"]
[null,"Pakistan"]
[null,"Palau"]
[null,"Panama"]
[null,"Papua New Guinea"]
[null,"Paraguay"]
[null,"Peru"]
[null,"Philippines"]
[null,"Poland"]
[null,"Portugal"]
[null,"Qatar"]
[null,"Republic of Moldova"]
[null,"Romania"]
[null,"Russian Federation"]
[null,"Rwanda"]
[null,"Saint Kitts and Nevis"]
[null,"Saint Lucia"]
[null,"Saint Vincent and the Grenadines"]
[null,"Samoa"]
[null,"San Marino"]
[null,"Sao Tome and Principe"]
[null,"Saudi Arabia"]
[null,"Senegal"]
[null,"Serbia"]
[null,"Seychelles"]
[null,"Sierra Leone"]
[null,"Singapore"]
[null,"Slovakia"]
[null,"Slovenia"]
[null,"Solomon Islands"]
[null,"Somalia (Federal Republic of)"]
[null,"South Africa"]
[null,"South Korea (Republic of Korea)"]
[null,"South Sudan"]
[null,"Spain"]
[null,"Sri Lanka"]
[null,"Sudan"]
[null,"Suriname"]
[null,"Swaziland"]
[null,"Sweden"]
[null,"Switzerland"]
[null,"Syrian Arab Republic"]
[null,"Tahiti"]
[null,"Taiwan"]
[null,"Tajikistan"]
[null,"Thailand"]
[null,"The Former Yugoslav Republic of Macedonia"]
[null,"Timor-Leste"]
[null,"Togo"]
[null,"Tonga"]
[null,"Trinidad and Tobago"]
[null,"Tunisia"]
[null,"Turkey"]
[null,"Turkmenistan"]
[null,"Tuvalu"]
[null,"Uganda"]
[null,"Ukraine"]
[null,"United Arab Emirates"]
[null,"United Kingdom of Great Britain and Northern Ireland"]
[null,"United Republic of Tanzania"]
[null,"United States of America"]
[null,"Uruguay"]
[null,"Uzbekistan"]
[null,"Vanuatu"]
[null,"Venezuela (Bolivarian Republic of)"]
[null,"Viet Nam"]
[null,"Yemen"]
[null,"Zambia"]
[null,"Zimbabwe"]

{"sheet":"OutputForCSV","index":7,"n_rows":12,"n_cols":23,"rows_kept":12,"cut":false,"hidden":true,"merged":[]}
["Entry",1,"TRAD2",4,{"$f":"'Section 1'!D5","v":"2020-07-15"},{"$f":"'Section 1'!D9","v":0},{"$f":"'Section 1'!D10","v":0},{"$f":"'Section 1'!D11","v":0},"N/A",null,null,null,null,null,null,null,null,null,null,null,null,null,"LastColumn"]
[1,{"$f":"IF(C2=\"\",\"\",2)","v":""},{"$f":"IFERROR(VLOOKUP($A2,'Section 2'!$D$22:$O$31,COLUMNS('Section 2'!$D$18:D$19),0),\"\")","v":""},{"$f":"IF(C2=\"\",\"\",'Section 2'!$D$14)","v":""},{"$f":"IF('Section 2'!$E$14=0,\"\",'Section 2'!$E$14)","v":""},{"$f":"IF('Section 2'!$F$14=0,\"\",'Section 2'!$F$14)","v":""},{"$f":"IF('Section 2'!$G$14=0,\"\",'Section 2'!$G$14)","v":""},{"$f":"IF('Section 2'!$H$14=0,\"\",'Section 2'!$H$14)","v":""},{"$f":"IF('Section 2'!$I$14=0,\"\",'Section 2'!$I$14)","v":""},{"$f":"IF('Section 2'!$J$14=0,\"\",'Section 2'!$J$14)","v":""},{"$f":"IF('Section 2'!$K$14=0,\"\",'Section 2'!$K$14)","v":""},{"$f":"IFERROR(PROPER(VLOOKUP($A2,'Section 2'!$D$22:$O$31,COLUMNS('Section 2'!$D$18:E$19),0)),\"\")","v":""},{"$f":"IFERROR(PROPER(VLOOKUP($A2,'Section 2'!$D$22:$O$31,COLUMNS('Section 2'!$D$18:F$19),0)),\"\")","v":""},{"$f":"IFERROR(PROPER(VLOOKUP($A2,'Section 2'!$D$22:$O$31,COLUMNS('Section 2'!$D$18:G$19),0)),\"\")","v":""},{"$f":"IFERROR(VLOOKUP($A2,'Section 2'!$D$22:$O$31,COLUMNS('Section 2'!$D$18:H$19),0),\"\")","v":""},{"$f":"IFERROR(VLOOKUP($A2,'Section 2'!$D$22:$O$31,COLUMNS('Section 2'!$D$18:I$19),0),\"\")","v":""},{"$f":"IFERROR(VLOOKUP($A2,'Section 2'!$D$22:$O$31,COLUMNS('Section 2'!$D$18:J$19),0),\"\")","v":""},{"$f":"IFERROR(VLOOKUP($A2,'Section 2'!$D$22:$O$31,COLUMNS('Section 2'!$D$18:K$19),0),\"\")","v":""},{"$f":"IFERROR(VLOOKUP($A2,'Section 2'!$D$22:$O$31,COLUMNS('Section 2'!$D$18:L$19),0),\"\")","v":""},{"$f":"IFERROR(VLOOKUP($A2,'Section 2'!$D$22:$O$31,COLUMNS('Section 2'!$D$18:M$19),0),\"\")","v":""},{"$f":"IFERROR(VLOOKUP($A2,'Section 2'!$D$22:$O$31,COLUMNS('Section 2'!$D$18:N$19),0),\"\")","v":""},{"$f":"IFERROR(VLOOKUP($A2,'Section 2'!$D$22:$O$31,COLUMNS('Section 2'!$D$18:O$19),0),\"\")","v":""}]
[2,{"$f":"IF(C3=\"\",\"\",2)","v":""},{"$f":"IFERROR(VLOOKUP($A3,'Section 2'!$D$22:$O$31,COLUMNS('Section 2'!$D$18:D$19),0),\"\")","v":""},{"$f":"IF(C3=\"\",\"\",'Section 2'!$D$14)","v":""},{"$f":"IF(C3=\"\",\"\",IF('Section 2'!$E$14=0,\"\",'Section 2'!$E$14))","v":""},{"$f":"IF(C3=\"\",\"\",IF('Section 2'!$F$14=0,\"\",'Section 2'!$F$14))","v":""},{"$f":"IF(C3=\"\",\"\",IF('Section 2'!$G$14=0,\"\",'Section 2'!$G$14))","v":""},{"$f":"IF(C3=\"\",\"\",IF('Section 2'!$H$14=0,\"\",'Section 2'!$H$14))","v":""},{"$f":"IF(C3=\"\",\"\",IF('Section 2'!$I$14=0,\"\",'Section 2'!$I$14))","v":""},{"$f":"IF(C3=\"\",\"\",IF('Section 2'!$J$14=0,\"\",'Section 2'!$J$14))","v":""},{"$f":"IF(C3=\"\",\"\",IF('Section 2'!$K$14=0,\"\",'Section 2'!$K$14))","v":""},{"$f":"IFERROR(PROPER(VLOOKUP($A3,'Section 2'!$D$22:$O$31,COLUMNS('Section 2'!$D$18:E$19),0)),\"\")","v":""},{"$f":"IFERROR(PROPER(VLOOKUP($A3,'Section 2'!$D$22:$O$31,COLUMNS('Section 2'!$D$18:F$19),0)),\"\")","v":""},{"$f":"IFERROR(PROPER(VLOOKUP($A3,'Section 2'!$D$22:$O$31,COLUMNS('Section 2'!$D$18:G$19),0)),\"\")","v":""},{"$f":"IFERROR(VLOOKUP($A3,'Section 2'!$D$22:$O$31,COLUMNS('Section 2'!$D$18:H$19),0),\"\")","v":""},{"$f":"IFERROR(VLOOKUP($A3,'Section 2'!$D$22:$O$31,COLUMNS('Section 2'!$D$18:I$19),0),\"\")","v":""},{"$f":"IFERROR(VLOOKUP($A3,'Section 2'!$D$22:$O$31,COLUMNS('Section 2'!$D$18:J$19),0),\"\")","v":""},{"$f":"IFERROR(VLOOKUP($A3,'Section 2'!$D$22:$O$31,COLUMNS('Section 2'!$D$18:K$19),0),\"\")","v":""},{"$f":"IFERROR(VLOOKUP($A3,'Section 2'!$D$22:$O$31,COLUMNS('Section 2'!$D$18:L$19),0),\"\")","v":""},{"$f":"IFERROR(VLOOKUP($A3,'Section 2'!$D$22:$O$31,COLUMNS('Section 2'!$D$18:M$19),0),\"\")","v":""},{"$f":"IFERROR(VLOOKUP($A3,'Section 2'!$D$22:$O$31,COLUMNS('Section 2'!$D$18:N$19),0),\"\")","v":""},{"$f":"IFERROR(VLOOKUP($A3,'Section 2'!$D$22:$O$31,COLUMNS('Section 2'!$D$18:O$19),0),\"\")","v":""}]
[3,"",{"$f":"IFERROR(VLOOKUP($A4,'Section 2'!$D$22:$O$31,COLUMNS('Section 2'!$D$18:D$19),0),\"\")","v":""},{"$f":"IF(C4=\"\",\"\",'Section 2'!$D$14)","v":""},{"$f":"IF(C4=\"\",\"\",IF('Section 2'!$E$14=0,\"\",'Section 2'!$E$14))","v":""},{"$f":"IF(C4=\"\",\"\",IF('Section 2'!$F$14=0,\"\",'Section 2'!$F$14))","v":""},{"$f":"IF(C4=\"\",\"\",IF('Section 2'!$G$14=0,\"\",'Section 2'!$G$14))","v":""},{"$f":"IF(C4=\"\",\"\",IF('Section 2'!$H$14=0,\"\",'Section 2'!$H$14))","v":""},{"$f":"IF(C4=\"\",\"\",IF('Section 2'!$I$14=0,\"\",'Section 2'!$I$14))","v":""},{"$f":"IF(C4=\"\",\"\",IF('Section 2'!$J$14=0,\"\",'Section 2'!$J$14))","v":""},{"$f":"IF(C4=\"\",\"\",IF('Section 2'!$K$14=0,\"\",'Section 2'!$K$14))","v":""},{"$f":"IFERROR(PROPER(VLOOKUP($A4,'Section 2'!$D$22:$O$31,COLUMNS('Section 2'!$D$18:E$19),0)),\"\")","v":""},{"$f":"IFERROR(PROPER(VLOOKUP($A4,'Section 2'!$D$22:$O$31,COLUMNS('Section 2'!$D$18:F$19),0)),\"\")","v":""},{"$f":"IFERROR(PROPER(VLOOKUP($A4,'Section 2'!$D$22:$O$31,COLUMNS('Section 2'!$D$18:G$19),0)),\"\")","v":""},{"$f":"IFERROR(VLOOKUP($A4,'Section 2'!$D$22:$O$31,COLUMNS('Section 2'!$D$18:H$19),0),\"\")","v":""},{"$f":"IFERROR(VLOOKUP($A4,'Section 2'!$D$22:$O$31,COLUMNS('Section 2'!$D$18:I$19),0),\"\")","v":""},{"$f":"IFERROR(VLOOKUP($A4,'Section 2'!$D$22:$O$31,COLUMNS('Section 2'!$D$18:J$19),0),\"\")","v":""},{"$f":"IFERROR(VLOOKUP($A4,'Section 2'!$D$22:$O$31,COLUMNS('Section 2'!$D$18:K$19),0),\"\")","v":""},{"$f":"IFERROR(VLOOKUP($A4,'Section 2'!$D$22:$O$31,COLUMNS('Section 2'!$D$18:L$19),0),\"\")","v":""},{"$f":"IFERROR(VLOOKUP($A4,'Section 2'!$D$22:$O$31,COLUMNS('Section 2'!$D$18:M$19),0),\"\")","v":""},{"$f":"IFERROR(VLOOKUP($A4,'Section 2'!$D$22:$O$31,COLUMNS('Section 2'!$D$18:N$19),0),\"\")","v":""},{"$f":"IFERROR(VLOOKUP($A4,'Section 2'!$D$22:$O$31,COLUMNS('Section 2'!$D$18:O$19),0),\"\")","v":""}]
[4,"",{"$f":"IFERROR(VLOOKUP($A5,'Section 2'!$D$22:$O$31,COLUMNS('Section 2'!$D$18:D$19),0),\"\")","v":""},{"$f":"IF(C5=\"\",\"\",'Section 2'!$D$14)","v":""},{"$f":"IF(C5=\"\",\"\",IF('Section 2'!$E$14=0,\"\",'Section 2'!$E$14))","v":""},{"$f":"IF(C5=\"\",\"\",IF('Section 2'!$F$14=0,\"\",'Section 2'!$F$14))","v":""},{"$f":"IF(C5=\"\",\"\",IF('Section 2'!$G$14=0,\"\",'Section 2'!$G$14))","v":""},{"$f":"IF(C5=\"\",\"\",IF('Section 2'!$H$14=0,\"\",'Section 2'!$H$14))","v":""},{"$f":"IF(C5=\"\",\"\",IF('Section 2'!$I$14=0,\"\",'Section 2'!$I$14))","v":""},{"$f":"IF(C5=\"\",\"\",IF('Section 2'!$J$14=0,\"\",'Section 2'!$J$14))","v":""},{"$f":"IF(C5=\"\",\"\",IF('Section 2'!$K$14=0,\"\",'Section 2'!$K$14))","v":""},{"$f":"IFERROR(PROPER(VLOOKUP($A5,'Section 2'!$D$22:$O$31,COLUMNS('Section 2'!$D$18:E$19),0)),\"\")","v":""},{"$f":"IFERROR(PROPER(VLOOKUP($A5,'Section 2'!$D$22:$O$31,COLUMNS('Section 2'!$D$18:F$19),0)),\"\")","v":""},{"$f":"IFERROR(PROPER(VLOOKUP($A5,'Section 2'!$D$22:$O$31,COLUMNS('Section 2'!$D$18:G$19),0)),\"\")","v":""},{"$f":"IFERROR(VLOOKUP($A5,'Section 2'!$D$22:$O$31,COLUMNS('Section 2'!$D$18:H$19),0),\"\")","v":""},{"$f":"IFERROR(VLOOKUP($A5,'Section 2'!$D$22:$O$31,COLUMNS('Section 2'!$D$18:I$19),0),\"\")","v":""},{"$f":"IFERROR(VLOOKUP($A5,'Section 2'!$D$22:$O$31,COLUMNS('Section 2'!$D$18:J$19),0),\"\")","v":""},{"$f":"IFERROR(VLOOKUP($A5,'Section 2'!$D$22:$O$31,COLUMNS('Section 2'!$D$18:K$19),0),\"\")","v":""},{"$f":"IFERROR(VLOOKUP($A5,'Section 2'!$D$22:$O$31,COLUMNS('Section 2'!$D$18:L$19),0),\"\")","v":""},{"$f":"IFERROR(VLOOKUP($A5,'Section 2'!$D$22:$O$31,COLUMNS('Section 2'!$D$18:M$19),0),\"\")","v":""},{"$f":"IFERROR(VLOOKUP($A5,'Section 2'!$D$22:$O$31,COLUMNS('Section 2'!$D$18:N$19),0),\"\")","v":""},{"$f":"IFERROR(VLOOKUP($A5,'Section 2'!$D$22:$O$31,COLUMNS('Section 2'!$D$18:O$19),0),\"\")","v":""}]
[5,"",{"$f":"IFERROR(VLOOKUP($A6,'Section 2'!$D$22:$O$31,COLUMNS('Section 2'!$D$18:D$19),0),\"\")","v":""},{"$f":"IF(C6=\"\",\"\",'Section 2'!$D$14)","v":""},{"$f":"IF(C6=\"\",\"\",IF('Section 2'!$E$14=0,\"\",'Section 2'!$E$14))","v":""},{"$f":"IF(C6=\"\",\"\",IF('Section 2'!$F$14=0,\"\",'Section 2'!$F$14))","v":""},{"$f":"IF(C6=\"\",\"\",IF('Section 2'!$G$14=0,\"\",'Section 2'!$G$14))","v":""},{"$f":"IF(C6=\"\",\"\",IF('Section 2'!$H$14=0,\"\",'Section 2'!$H$14))","v":""},{"$f":"IF(C6=\"\",\"\",IF('Section 2'!$I$14=0,\"\",'Section 2'!$I$14))","v":""},{"$f":"IF(C6=\"\",\"\",IF('Section 2'!$J$14=0,\"\",'Section 2'!$J$14))","v":""},{"$f":"IF(C6=\"\",\"\",IF('Section 2'!$K$14=0,\"\",'Section 2'!$K$14))","v":""},{"$f":"IFERROR(PROPER(VLOOKUP($A6,'Section 2'!$D$22:$O$31,COLUMNS('Section 2'!$D$18:E$19),0)),\"\")","v":""},{"$f":"IFERROR(PROPER(VLOOKUP($A6,'Section 2'!$D$22:$O$31,COLUMNS('Section 2'!$D$18:F$19),0)),\"\")","v":""},{"$f":"IFERROR(PROPER(VLOOKUP($A6,'Section 2'!$D$22:$O$31,COLUMNS('Section 2'!$D$18:G$19),0)),\"\")","v":""},{"$f":"IFERROR(VLOOKUP($A6,'Section 2'!$D$22:$O$31,COLUMNS('Section 2'!$D$18:H$19),0),\"\")","v":""},{"$f":"IFERROR(VLOOKUP($A6,'Section 2'!$D$22:$O$31,COLUMNS('Section 2'!$D$18:I$19),0),\"\")","v":""},{"$f":"IFERROR(VLOOKUP($A6,'Section 2'!$D$22:$O$31,COLUMNS('Section 2'!$D$18:J$19),0),\"\")","v":""},{"$f":"IFERROR(VLOOKUP($A6,'Section 2'!$D$22:$O$31,COLUMNS('Section 2'!$D$18:K$19),0),\"\")","v":""},{"$f":"IFERROR(VLOOKUP($A6,'Section 2'!$D$22:$O$31,COLUMNS('Section 2'!$D$18:L$19),0),\"\")","v":""},{"$f":"IFERROR(VLOOKUP($A6,'Section 2'!$D$22:$O$31,COLUMNS('Section 2'!$D$18:M$19),0),\"\")","v":""},{"$f":"IFERROR(VLOOKUP($A6,'Section 2'!$D$22:$O$31,COLUMNS('Section 2'!$D$18:N$19),0),\"\")","v":""},{"$f":"IFERROR(VLOOKUP($A6,'Section 2'!$D$22:$O$31,COLUMNS('Section 2'!$D$18:O$19),0),\"\")","v":""}]
[6,"",{"$f":"IFERROR(VLOOKUP($A7,'Section 2'!$D$22:$O$31,COLUMNS('Section 2'!$D$18:D$19),0),\"\")","v":""},{"$f":"IF(C7=\"\",\"\",'Section 2'!$D$14)","v":""},{"$f":"IF(C7=\"\",\"\",IF('Section 2'!$E$14=0,\"\",'Section 2'!$E$14))","v":""},{"$f":"IF(C7=\"\",\"\",IF('Section 2'!$F$14=0,\"\",'Section 2'!$F$14))","v":""},{"$f":"IF(C7=\"\",\"\",IF('Section 2'!$G$14=0,\"\",'Section 2'!$G$14))","v":""},{"$f":"IF(C7=\"\",\"\",IF('Section 2'!$H$14=0,\"\",'Section 2'!$H$14))","v":""},{"$f":"IF(C7=\"\",\"\",IF('Section 2'!$I$14=0,\"\",'Section 2'!$I$14))","v":""},{"$f":"IF(C7=\"\",\"\",IF('Section 2'!$J$14=0,\"\",'Section 2'!$J$14))","v":""},{"$f":"IF(C7=\"\",\"\",IF('Section 2'!$K$14=0,\"\",'Section 2'!$K$14))","v":""},{"$f":"IFERROR(PROPER(VLOOKUP($A7,'Section 2'!$D$22:$O$31,COLUMNS('Section 2'!$D$18:E$19),0)),\"\")","v":""},{"$f":"IFERROR(PROPER(VLOOKUP($A7,'Section 2'!$D$22:$O$31,COLUMNS('Section 2'!$D$18:F$19),0)),\"\")","v":""},{"$f":"IFERROR(PROPER(VLOOKUP($A7,'Section 2'!$D$22:$O$31,COLUMNS('Section 2'!$D$18:G$19),0)),\"\")","v":""},{"$f":"IFERROR(VLOOKUP($A7,'Section 2'!$D$22:$O$31,COLUMNS('Section 2'!$D$18:H$19),0),\"\")","v":""},{"$f":"IFERROR(VLOOKUP($A7,'Section 2'!$D$22:$O$31,COLUMNS('Section 2'!$D$18:I$19),0),\"\")","v":""},{"$f":"IFERROR(VLOOKUP($A7,'Section 2'!$D$22:$O$31,COLUMNS('Section 2'!$D$18:J$19),0),\"\")","v":""},{"$f":"IFERROR(VLOOKUP($A7,'Section 2'!$D$22:$O$31,COLUMNS('Section 2'!$D$18:K$19),0),\"\")","v":""},{"$f":"IFERROR(VLOOKUP($A7,'Section 2'!$D$22:$O$31,COLUMNS('Section 2'!$D$18:L$19),0),\"\")","v":""},{"$f":"IFERROR(VLOOKUP($A7,'Section 2'!$D$22:$O$31,COLUMNS('Section 2'!$D$18:M$19),0),\"\")","v":""},{"$f":"IFERROR(VLOOKUP($A7,'Section 2'!$D$22:$O$31,COLUMNS('Section 2'!$D$18:N$19),0),\"\")","v":""},{"$f":"IFERROR(VLOOKUP($A7,'Section 2'!$D$22:$O$31,COLUMNS('Section 2'!$D$18:O$19),0),\"\")","v":""}]
[7,"",{"$f":"IFERROR(VLOOKUP($A8,'Section 2'!$D$22:$O$31,COLUMNS('Section 2'!$D$18:D$19),0),\"\")","v":""},{"$f":"IF(C8=\"\",\"\",'Section 2'!$D$14)","v":""},{"$f":"IF(C8=\"\",\"\",IF('Section 2'!$E$14=0,\"\",'Section 2'!$E$14))","v":""},{"$f":"IF(C8=\"\",\"\",IF('Section 2'!$F$14=0,\"\",'Section 2'!$F$14))","v":""},{"$f":"IF(C8=\"\",\"\",IF('Section 2'!$G$14=0,\"\",'Section 2'!$G$14))","v":""},{"$f":"IF(C8=\"\",\"\",IF('Section 2'!$H$14=0,\"\",'Section 2'!$H$14))","v":""},{"$f":"IF(C8=\"\",\"\",IF('Section 2'!$I$14=0,\"\",'Section 2'!$I$14))","v":""},{"$f":"IF(C8=\"\",\"\",IF('Section 2'!$J$14=0,\"\",'Section 2'!$J$14))","v":""},{"$f":"IF(C8=\"\",\"\",IF('Section 2'!$K$14=0,\"\",'Section 2'!$K$14))","v":""},{"$f":"IFERROR(PROPER(VLOOKUP($A8,'Section 2'!$D$22:$O$31,COLUMNS('Section 2'!$D$18:E$19),0)),\"\")","v":""},{"$f":"IFERROR(PROPER(VLOOKUP($A8,'Section 2'!$D$22:$O$31,COLUMNS('Section 2'!$D$18:F$19),0)),\"\")","v":""},{"$f":"IFERROR(PROPER(VLOOKUP($A8,'Section 2'!$D$22:$O$31,COLUMNS('Section 2'!$D$18:G$19),0)),\"\")","v":""},{"$f":"IFERROR(VLOOKUP($A8,'Section 2'!$D$22:$O$31,COLUMNS('Section 2'!$D$18:H$19),0),\"\")","v":""},{"$f":"IFERROR(VLOOKUP($A8,'Section 2'!$D$22:$O$31,COLUMNS('Section 2'!$D$18:I$19),0),\"\")","v":""},{"$f":"IFERROR(VLOOKUP($A8,'Section 2'!$D$22:$O$31,COLUMNS('Section 2'!$D$18:J$19),0),\"\")","v":""},{"$f":"IFERROR(VLOOKUP($A8,'Section 2'!$D$22:$O$31,COLUMNS('Section 2'!$D$18:K$19),0),\"\")","v":""},{"$f":"IFERROR(VLOOKUP($A8,'Section 2'!$D$22:$O$31,COLUMNS('Section 2'!$D$18:L$19),0),\"\")","v":""},{"$f":"IFERROR(VLOOKUP($A8,'Section 2'!$D$22:$O$31,COLUMNS('Section 2'!$D$18:M$19),0),\"\")","v":""},{"$f":"IFERROR(VLOOKUP($A8,'Section 2'!$D$22:$O$31,COLUMNS('Section 2'!$D$18:N$19),0),\"\")","v":""},{"$f":"IFERROR(VLOOKUP($A8,'Section 2'!$D$22:$O$31,COLUMNS('Section 2'!$D$18:O$19),0),\"\")","v":""}]
[8,"",{"$f":"IFERROR(VLOOKUP($A9,'Section 2'!$D$22:$O$31,COLUMNS('Section 2'!$D$18:D$19),0),\"\")","v":""},{"$f":"IF(C9=\"\",\"\",'Section 2'!$D$14)","v":""},{"$f":"IF(C9=\"\",\"\",IF('Section 2'!$E$14=0,\"\",'Section 2'!$E$14))","v":""},{"$f":"IF(C9=\"\",\"\",IF('Section 2'!$F$14=0,\"\",'Section 2'!$F$14))","v":""},{"$f":"IF(C9=\"\",\"\",IF('Section 2'!$G$14=0,\"\",'Section 2'!$G$14))","v":""},{"$f":"IF(C9=\"\",\"\",IF('Section 2'!$H$14=0,\"\",'Section 2'!$H$14))","v":""},{"$f":"IF(C9=\"\",\"\",IF('Section 2'!$I$14=0,\"\",'Section 2'!$I$14))","v":""},{"$f":"IF(C9=\"\",\"\",IF('Section 2'!$J$14=0,\"\",'Section 2'!$J$14))","v":""},{"$f":"IF(C9=\"\",\"\",IF('Section 2'!$K$14=0,\"\",'Section 2'!$K$14))","v":""},{"$f":"IFERROR(PROPER(VLOOKUP($A9,'Section 2'!$D$22:$O$31,COLUMNS('Section 2'!$D$18:E$19),0)),\"\")","v":""},{"$f":"IFERROR(PROPER(VLOOKUP($A9,'Section 2'!$D$22:$O$31,COLUMNS('Section 2'!$D$18:F$19),0)),\"\")","v":""},{"$f":"IFERROR(PROPER(VLOOKUP($A9,'Section 2'!$D$22:$O$31,COLUMNS('Section 2'!$D$18:G$19),0)),\"\")","v":""},{"$f":"IFERROR(VLOOKUP($A9,'Section 2'!$D$22:$O$31,COLUMNS('Section 2'!$D$18:H$19),0),\"\")","v":""},{"$f":"IFERROR(VLOOKUP($A9,'Section 2'!$D$22:$O$31,COLUMNS('Section 2'!$D$18:I$19),0),\"\")","v":""},{"$f":"IFERROR(VLOOKUP($A9,'Section 2'!$D$22:$O$31,COLUMNS('Section 2'!$D$18:J$19),0),\"\")","v":""},{"$f":"IFERROR(VLOOKUP($A9,'Section 2'!$D$22:$O$31,COLUMNS('Section 2'!$D$18:K$19),0),\"\")","v":""},{"$f":"IFERROR(VLOOKUP($A9,'Section 2'!$D$22:$O$31,COLUMNS('Section 2'!$D$18:L$19),0),\"\")","v":""},{"$f":"IFERROR(VLOOKUP($A9,'Section 2'!$D$22:$O$31,COLUMNS('Section 2'!$D$18:M$19),0),\"\")","v":""},{"$f":"IFERROR(VLOOKUP($A9,'Section 2'!$D$22:$O$31,COLUMNS('Section 2'!$D$18:N$19),0),\"\")","v":""},{"$f":"IFERROR(VLOOKUP($A9,'Section 2'!$D$22:$O$31,COLUMNS('Section 2'!$D$18:O$19),0),\"\")","v":""}]
[9,"",{"$f":"IFERROR(VLOOKUP($A10,'Section 2'!$D$22:$O$31,COLUMNS('Section 2'!$D$18:D$19),0),\"\")","v":""},{"$f":"IF(C10=\"\",\"\",'Section 2'!$D$14)","v":""},{"$f":"IF(C10=\"\",\"\",IF('Section 2'!$E$14=0,\"\",'Section 2'!$E$14))","v":""},{"$f":"IF(C10=\"\",\"\",IF('Section 2'!$F$14=0,\"\",'Section 2'!$F$14))","v":""},{"$f":"IF(C10=\"\",\"\",IF('Section 2'!$G$14=0,\"\",'Section 2'!$G$14))","v":""},{"$f":"IF(C10=\"\",\"\",IF('Section 2'!$H$14=0,\"\",'Section 2'!$H$14))","v":""},{"$f":"IF(C10=\"\",\"\",IF('Section 2'!$I$14=0,\"\",'Section 2'!$I$14))","v":""},{"$f":"IF(C10=\"\",\"\",IF('Section 2'!$J$14=0,\"\",'Section 2'!$J$14))","v":""},{"$f":"IF(C10=\"\",\"\",IF('Section 2'!$K$14=0,\"\",'Section 2'!$K$14))","v":""},{"$f":"IFERROR(PROPER(VLOOKUP($A10,'Section 2'!$D$22:$O$31,COLUMNS('Section 2'!$D$18:E$19),0)),\"\")","v":""},{"$f":"IFERROR(PROPER(VLOOKUP($A10,'Section 2'!$D$22:$O$31,COLUMNS('Section 2'!$D$18:F$19),0)),\"\")","v":""},{"$f":"IFERROR(PROPER(VLOOKUP($A10,'Section 2'!$D$22:$O$31,COLUMNS('Section 2'!$D$18:G$19),0)),\"\")","v":""},{"$f":"IFERROR(VLOOKUP($A10,'Section 2'!$D$22:$O$31,COLUMNS('Section 2'!$D$18:H$19),0),\"\")","v":""},{"$f":"IFERROR(VLOOKUP($A10,'Section 2'!$D$22:$O$31,COLUMNS('Section 2'!$D$18:I$19),0),\"\")","v":""},{"$f":"IFERROR(VLOOKUP($A10,'Section 2'!$D$22:$O$31,COLUMNS('Section 2'!$D$18:J$19),0),\"\")","v":""},{"$f":"IFERROR(VLOOKUP($A10,'Section 2'!$D$22:$O$31,COLUMNS('Section 2'!$D$18:K$19),0),\"\")","v":""},{"$f":"IFERROR(VLOOKUP($A10,'Section 2'!$D$22:$O$31,COLUMNS('Section 2'!$D$18:L$19),0),\"\")","v":""},{"$f":"IFERROR(VLOOKUP($A10,'Section 2'!$D$22:$O$31,COLUMNS('Section 2'!$D$18:M$19),0),\"\")","v":""},{"$f":"IFERROR(VLOOKUP($A10,'Section 2'!$D$22:$O$31,COLUMNS('Section 2'!$D$18:N$19),0),\"\")","v":""},{"$f":"IFERROR(VLOOKUP($A10,'Section 2'!$D$22:$O$31,COLUMNS('Section 2'!$D$18:O$19),0),\"\")","v":""}]
[10,"",{"$f":"IFERROR(VLOOKUP($A11,'Section 2'!$D$22:$O$31,COLUMNS('Section 2'!$D$18:D$19),0),\"\")","v":""},{"$f":"IF(C11=\"\",\"\",'Section 2'!$D$14)","v":""},{"$f":"IF(C11=\"\",\"\",IF('Section 2'!$E$14=0,\"\",'Section 2'!$E$14))","v":""},{"$f":"IF(C11=\"\",\"\",IF('Section 2'!$F$14=0,\"\",'Section 2'!$F$14))","v":""},{"$f":"IF(C11=\"\",\"\",IF('Section 2'!$G$14=0,\"\",'Section 2'!$G$14))","v":""},{"$f":"IF(C11=\"\",\"\",IF('Section 2'!$H$14=0,\"\",'Section 2'!$H$14))","v":""},{"$f":"IF(C11=\"\",\"\",IF('Section 2'!$I$14=0,\"\",'Section 2'!$I$14))","v":""},{"$f":"IF(C11=\"\",\"\",IF('Section 2'!$J$14=0,\"\",'Section 2'!$J$14))","v":""},{"$f":"IF(C11=\"\",\"\",IF('Section 2'!$K$14=0,\"\",'Section 2'!$K$14))","v":""},{"$f":"IFERROR(PROPER(VLOOKUP($A11,'Section 2'!$D$22:$O$31,COLUMNS('Section 2'!$D$18:E$19),0)),\"\")","v":""},{"$f":"IFERROR(PROPER(VLOOKUP($A11,'Section 2'!$D$22:$O$31,COLUMNS('Section 2'!$D$18:F$19),0)),\"\")","v":""},{"$f":"IFERROR(PROPER(VLOOKUP($A11,'Section 2'!$D$22:$O$31,COLUMNS('Section 2'!$D$18:G$19),0)),\"\")","v":""},{"$f":"IFERROR(VLOOKUP($A11,'Section 2'!$D$22:$O$31,COLUMNS('Section 2'!$D$18:H$19),0),\"\")","v":""},{"$f":"IFERROR(VLOOKUP($A11,'Section 2'!$D$22:$O$31,COLUMNS('Section 2'!$D$18:I$19),0),\"\")","v":""},{"$f":"IFERROR(VLOOKUP($A11,'Section 2'!$D$22:$O$31,COLUMNS('Section 2'!$D$18:J$19),0),\"\")","v":""},{"$f":"IFERROR(VLOOKUP($A11,'Section 2'!$D$22:$O$31,COLUMNS('Section 2'!$D$18:K$19),0),\"\")","v":""},{"$f":"IFERROR(VLOOKUP($A11,'Section 2'!$D$22:$O$31,COLUMNS('Section 2'!$D$18:L$19),0),\"\")","v":""},{"$f":"IFERROR(VLOOKUP($A11,'Section 2'!$D$22:$O$31,COLUMNS('Section 2'!$D$18:M$19),0),\"\")","v":""},{"$f":"IFERROR(VLOOKUP($A11,'Section 2'!$D$22:$O$31,COLUMNS('Section 2'!$D$18:N$19),0),\"\")","v":""},{"$f":"IFERROR(VLOOKUP($A11,'Section 2'!$D$22:$O$31,COLUMNS('Section 2'!$D$18:O$19),0),\"\")","v":""}]
["LastRow"]